Workbook

Sheet Readme
A2: COVID-19 Aerosol Transmission Estimator | E2: File --> Make a Copy OR Download to Excel (Click GREEN links below if don't see option)
A3: Developed by: | B3: Prof. Jose L Jimenez, Dept. of Chem. and CIRES, Univ. of Colorado-Boulder | G3: Shortcut: | H3: https://tinyurl.com/covid-estimator
A4: Short description of this tool in CIRES Press Release: | E4: Simplified version of this tool by Nat Geographic | H4: Direct copy in Google Drive (as Google Sheet)
A5: 5 min. read on aerosol evidence: | C5: Patterns of transmission | E5: Extensive discussion in my Twitter Threads | H5: Direct download into Excel
A6: Recorded webinar on this tool: | C6: 1. Description & Tour (watch first) | E6: 2. Q&A session | F6: 3. Short intro by A. Mishra | H6: Come back for new versions
A7: Informacion en espanol / castellano: | C7: 1. Descripcion y demonstracion | E7: 2. Entrevista PF | F7: 3. Entrevista HA
A8: Subscribing to email list for tool: | C8: https://groups.google.com/forum/#!forum/covid-estimator
A9: Using extensive input and feedback from many people (But any mistakes are my own): | C9: Linsey Marr, Shelly Miller, Giorgio Buonnano, Lidia Morawska, Don Milton, Julian Tang, Jarek Kurnitski, Xavier Querol, Matthew McQueen, Charles Stanier, Joel Eaves, Alfred Trukenmueller, Ty Newell, Greg Blonder, Andrew Maynard, Nathan Skinner, Clark Vangilder, Roger Olsen, Alex Mikszewski, Prasad Kasibhatla, Joe Bruce, Paul Dabisch, Yumi Roth, Andrew Persily, Susan Masten, Sebastien Tixier, Amber Kraver, Howard Chong, John Fay, Dustin Poppendieck, Jim Bagrowski, Gary Chaulklin, Richard Meehan, Jarrell Wenger, Alex Huffman, Bertrand Waucquez (only listing the most important here, many others have contributed feedback as well over email and Twitter. Thanks a lot to everyone!)
A10: Version & date | B10: 3.4.14 | C10: 2020-08-13
A12: What we are trying to estimate
A13: The propagation of COVID-19 by aerosol transmission ONLY
A14: The model is based on a standard model of aerosol disease transmission, the Wells-Riley model. It is calibrated to COVID-19 per recent literature on quanta emission rate
A15: This is NOT an epidemiological model, rather can take input from such models for the average rate of infection for a given location and time period. Or it could possibly be used as a sub-component of an epi-model, to estimate aerosol transmission as a function of various parameters
A16: This model does NOT include droplet or contact / fomite transmission, and assumes that 6 ft / 2 m social distancing is respected. Otherwise higher transmission will result
A17: This model does NOT include transmission to the people present, when they are in locations other than the one analyzed here
A18: The model can easily be adapted to other situations, such as offices, shops etc.
A20: Simplicity and uncertainties - IMPORTANT, PLEASE READ
A21: The model is kept simple so that it can be understood and changed easily. The goal is to get the order-of-magnitude of the effects quickly, and to explore the trends.
A22: Several parameters are uncertain, and have been estimated based on current knowledge. Alternative estimates can be entered to explore their effect in the results.
A23: More complex and realistic models can be built, however the parametric uncertainty may still dominate the total uncertainty
A24: Parameters based on new research can be incorporated as they become available. Pls send them my way
A25: Disclaimer: this model is our best scientific estimate, based on the information currently available. It is provided in the hope that it will be useful to others, based on us
B26: receiving a large number of requests for this type of information. We trust most the relative risk estimates (when changing parameters such as wearing a
B27: mask or not) of two runs of the model. We also trust the order-of-magnitude of the risk estimates, if the inputs are correct. The exact numerical results
B28: for a given case have more uncertainty. For example if you obtain a 1% chance of infection, in reality it could be 0.2% or 5%. But it won't be 0.001% or 100%.
B29: Results also have to be interpreted statistically, i.e. the result is the average number of transmission cases, across many realizations of a given event. I.e. if
B30: 1000 similar events were conducted, this would be the average probability. Any one event may have much fewer or many more transmission cases.
A32: How to use the estimator
A33: This online version will be kept up-to-date. We can't allow people to make changes to the online version, as otherwise people would overwrite each other's changes
A34: People interested in using the model should download an Excel version from File --> Download or make a G Sheets copy with File --> Make a copy
B35: Or you can download an Excel version with the direct link above
B36: The online model will continue to be updated, so you may want to re-download the file later on, if you continue to use it, to get the latest updates
B37: See the version log at the bottom of this sheet for a brief description of the updates
A39: Inputs and Outputs
B40: Most important inputs are colored in orange
B41: Inputs are colored in yellow. | D41: These are the cells you should change to explore different cases.
B42: Descriptions and intermediate calculations are not colored. Do not overwrite the calculations or you will break the estimator.
B43: Outputs are colored in blue. | D43: These are the final results of the model for each case. Do not overwrite them or you will break the estimator.
A45: Note that in some cases, the case in a sheet assumes that an infected person is present (e.g. in the classroom). While in other cases we use the prevalence of the disease in the population as
B46: an input on the calculations. They can be converted easily, but pay attention to what each specific sheet is doing.
A48: All sheets are self-contained, except for the University case
A50: For the University case
B51: Approximately scaled for a large University in the Western US for the Fall 2020 semester
B52: First, results are calculated for a typical classroom ("Classroom Sheet"), assuming either one student or the professor are infected
C53: Assumes enhanced social distancing and masks in place
C54: Classroom size does not matter much, since students will scale with it
B55: Then, results are scaled to the whole campus ("Campus Sheet"), taking into account the probability of infection in the population
A57: Suggestions and improvements
A58: Please email me for any suggestions for improvements, additional input data etc. | F58: jose.jimenez@colorado.edu
A60: Scientific Approach
A61: The model combines two submodels: (1) a standard atmospheric "box model", which assumes that the emissions are completely mixed across a control volume quickly (such as an indoor room or other space). See for example Chapter 3 of the Jacob Atmos. Chem. textbook, and Chapter 21 of the Cooper and Alley Air Pollution Control Engineering Textbook for indoor applications. This is an approximation that allows easy calculation, is approximately correct as long as near-field effects are avoided by social distancing, and is commonly used in air quality modeling. (2) a standard aerosol infection model (Wells-Riley model), as formulated in Miller et al. 2020, and references therein
B62: Miller et al. Skagit Choir Outbreak | D62: https://www.medrxiv.org/content/10.1101/2020.06.15.20132027v1
B63: Original Wells-Riley model: | D63: https://academic.oup.com/aje/article-abstract/107/5/421/58522
B64: Buonnano et al. (2020a) | D64: https://www.sciencedirect.com/science/article/pii/S0160412020312800
B65: Buonnano et al. (2020b) | D65: https://www.medrxiv.org/content/10.1101/2020.06.01.20118984v1
A67: Key parameters, sources, and uncertainties
A69: The most uncertain parameter is the quanta emission rates for SARS-CoV-2
B70: See FAQ sheet for the definition of quanta
B71: 970 q / h | C71: This is from the Miller et al. choir superspreading case | G71: https://www.medrxiv.org/content/10.1101/2020.06.15.20132027v1
D72: This value is at the high end of the Buonnano et al. values provided below, consistent with this being a superspreading event
D73: which was likely influenced by a very high emission rate of quanta from the specific index case
D74: We do not think that this very high value should be applied to all situations, as that would overestimate the infection risk.
B75: Buonnano et al. (2020a, b) provides a range of estimates. Recommended values by the author are: | H75: Paper 1 | I75: Paper 2
C76: IMPORTANT: The uncertainty of these values is high, probably at factor of 5 or 10. We just don't know enough about this disease yet. Also there are likely superspreaders which are less frequent but may have higher emissions (as in the choir case). Thus don't take abs. probabilities of infection at face value, just look at the order-of-magnitude (i.e. it is of the order of 0.001% or 0.01% or 0.1% or 1% or 10% or approaching 100%?. It is the relative effect of control measures, disease prevalence etc. that is most useful from this estimator, given the current state of knowledge.
C77: For a professor delivering a lecture:4.4, 21, and 134 for oral breathing, speaking and aloud speaking (or singing)
C78: For a student sitting on a lecture: 4, 16, 97 for oral breathing, speaking and aloud speaking (or singing)
C79: For a more general set of activities, provided by the same author, based on their 2nd paper:
D80: Resting – Oral breathing = 2.0 quanta/h
D81: Resting – Speaking = 9.4 quanta/h
D82: Resting – Loudly speaking = 60.5 quanta/h
D83: Standing – Oral breathing = 2.3 quanta/h
D84: Standing – Speaking = 11.4 quanta/h
D85: Standing – Loudly speaking = 65.1 quanta/h
D86: Light exercise – Oral breathing = 5.6 quanta/h
D87: Light exercise – Speaking = 26.3 quanta/h
D88: Light exercise – Loudly speaking = 170 quanta/h
D89: Heavy exercise – Oral breathing = 13.5 quanta/h
D90: Heavy exercise – Speaking = 63.1 quanta/h
D91: Heavy exercise – Loudly speaking = 408 quanta/h
B92: For children as a first approximation I would reduce these numbers proportionally to body mass.
B93: For comparison, values for measles can be over 5500 q h-1 (Riley et al. above). So COVID-19 is much less transmissible through the air than measles, but it
C94: can still be transmitted through aerosols under the right circumstances (indoors, lower ventilation, crowding, longer duration, activities that favor
C95: higher emission rates of respiratory aerosols such as singing, talking, aerobic exercise etc.) If you are curious, change the quantum emission rate
C96: to 5500 to see what measles would do, if it encountered a susceptible population with its high infectivity.
B97: To our knowledge the measurements of exhaled particle sizes and concentrations have never been reported for children (L. Morawska, pers. comm.). Therefore we recommend scaling the adult measurements by body weight.
A99: Inhalation (Breathing) Rates
B100: In the current formulation of the estimator, these matter for the susceptible person. For the infected person, they are part of what causes the quanta emission rate to increase with activity. But e.g. talking increases quanta emission far more than what the breathing rate increases, because the emission of respiratory particles increases much more than breathing.
B101: Recommended values from US EPA Exposure Factors Handbook (Chapter 6), depend on age and activity level
B102: Table 6-1 for a daily average (includes sleeping though!), but use Tables below for a more accurate estimate
B103: https://www.epa.gov/expobox/exposure-factors-handbook-chapter-6
A172: Mask efficiencies in reducing virus emission (as they come out the nose and mouth of an infected person)
B173: Note that mask fit may be as important as the type of mask, see this video: https://twitter.com/jljcolorado/status/1280935408398766080
B174: 0.5 | C174: Default value for the general population, with a variety of types of masks (cloth, surgical) and also variation on how well they are worn
C175: Reference: Davies et al. (2013) | E175: https://pubmed.ncbi.nlm.nih.gov/24229526/
C176: This number can vary widely from about 10% to about 80%, depending on the quality of masks and how they are worn.
B177: 0.9 | C177: For N95 masks (KN95, FF2). If well fitted and worn their efficiency for the large particles that most likely contain the viruses is 99% or more. However we use a lower value for their use in the community in the real world, since most people are not fitted, and they are not worn perfectly and can have leaks. 90% may even be optimistic in that situation.
B178: 0 | C178: For N95 masks that have an exhalation valve. Most of the air is exhausted through the valve, and there is little filtering
C179: See for example this article for a picture of that type of mask: https://www.healthline.com/health-news/certain-type-n95-mask-harm-covid19-spread
C180: Such masks are good for occupational exposure, if a worker is sanding, drilling etc. But they don't protect against exhaled particles.
B181: 0.65 | C181: For surgical masks, from Milton et al. (2013) | F181: https://journals.plos.org/plospathogens/article?id=10.1371/journal.ppat.1003205
C182: This is probably too high for the general population, which won't wear surgical masks as well as in a research study. We suggest using 50%
B183: 0.23 | C183: For face shields worn without a mask. This is a guess, since the one study available is for inhalation, not for emission. But it makes sense that efficiency would be low, due to limited inertia of exhaled particles under normal breathing or talking. From https://www.ncbi.nlm.nih.gov/pmc/articles/PMC4734356/ https://www.youtube.com/watch?v=eGONzm3vduI
A185: Mask efficiencies in reducing virus inhalation by a susceptible person (for virus already in aerosol particles floating in the air)
B186: The physical flows during exhalation and inhalation are different, and affect aerosol particles differently. Therefore the efficiencies are typically different
B187: 0.3 | C187: Davies et al. (2013; https://pubmed.ncbi.nlm.nih.gov/24229526/) reported a filtration efficiency of 50% for homemade cloth masks that people put on themselves. After discussion w/ Linsey Marr, we "discounted" this to be conservative, given imperfect wearing and fit in the community. We think 30-50% is a reasonable number. The higher value for situations with more conscientious people who pay more attention to keeping the mask well fit at all times.
B188: 0.9 | C188: For N95 masks (KN95, FF2). If well fitted and worn their efficiency for the large particles that most likely contain the viruses is 99% or more. However we use a lower value for their use in the community in the real world, since most people are not fitted, and they are not worn perfectly and can have leaks. 90% may even be optimistic in that situation.
B189: 0.23 | C189: For face shields worn without a mask, from https://www.ncbi.nlm.nih.gov/pmc/articles/PMC4734356/ https://www.youtube.com/watch?v=eGONzm3vduI Also note misconception that "face shields protect from falling aerosols". Aerosols actually RISE around the human body, driven by personal thermal plume. See https://doi.org/10.1016/j.buildenv.2015.04.010
A191: Building ventilation rates
B192: This refers only to replacement of indoor air with outdoor air. Recirculation of air with filtering is under "additional control measures"
B193: Note that e.g. a ventilation rate of 1 h-1 does not mean that 100% of the air is replaced in 1 h. That's the "plug flow" assumption, the air inside is displaced by the new air. But due to mixing it doesn't work that way. A better approximation is that the fraction of the intial air that remains in the space vs time is exp (-ACH * time) * 100%. So after 1 h, what remains is exp(-1 * 1) =* 100% = 36%, after 2 h, what remains is exp(-1 * 2) = 14% and so on.
B194: An MIT calculator for natural ventilation (through cracks, windows etc.) can be downloaded here: http://coolvent.mit.edu/
B195: This can be measured approximately for a given space with a fast (few minutes response) CO2 meter such as this one
C196: See this post which explains how to do it with some graphs: https://medium.com/@jjose_19945/how-to-quantify-the-ventilation-rate-of-an-indoor-space-using-a-cheap-co2-monitor-4d8b6d4dab44?source=friends_link&sk=6cda52f5682a4a450a10691f07d1ad2c
C197: How: go into the space, be there breathing for a while (more people would help). Then leave quickly. Look at the data later, and look at the point at which the CO2 - 400 ppm was 63% of the peak. That is the time constant, and the ventilation rate is 1 divided by that. See calculator below.
D198: CO2 at peak | E198: 1495 | F198: ppm (for your particular measurement)
D199: CO2 outdoors | E199: 415 | F199: ppm (global atmospheric background, don't change unless you know what you are doing)
D200: Excess CO2 | E200: =E198-E199 -> 1080 | F200: ppm
D201: CO2 at 63% decay | E201: =E199+exp(-1)*E200 -> 812.3097965 | F201: ppm (you need to estimate how long it took from the peak till it reached this level)
D202: Time of 63% val | E202: =51/60 -> 0.85 | F202: h
D203: Ventilation rate | E203: =1/E202 -> 1.176470588 | F203: h-1 (this is the result that you have to enter in the Master spreadsheet for ventilation rate
B204: Literature values for several situations in h-1 (= ACH, air-changes-per-hour)
B205: 0.5-1.5 | C205: Houses | D205: Typical values with the windows closed. Depends on how airtight the construction is. Older buildings tend to have higher values
B206: 2020-03-15 | C206: Windows open | D206: Estimate for open windows. Value varies a lot depending on outdoor wind speed and geometry.
B207: 0.1-8 | C207: Primary school | D207: https://www.sciencedirect.com/science/article/abs/pii/S1352231007008758
B208: 2.5 | C208: Univ classroom | D208: https://link.springer.com/article/10.1007/s00420-008-0301-9
B209: 0.4-5 | C209: Univ classroom | D209: https://onlinelibrary.wiley.com/doi/full/10.1111/ina.12111
B210: 2020-05-06 | C210: Univ classroom | D210: https://onlinelibrary.wiley.com/doi/full/10.1111/j.1600-0668.2012.00769.x
B211: 2020-02-11 | C211: Univ classroom | D211: https://onlinelibrary.wiley.com/doi/full/10.1111/ina.12272
B212: Varies | C212: ASHRAE 62 | D212: https://www.ashrae.org/technical-resources/bookstore/standards-62-1-62-2
D213: This is for commercial buildings. Per Prof. Shelly Miller: "If it was commissioned and maintained properly then this is probably a
D214: reasonable first estimate (if you can't measure or get hard data from facilities folks) (Link)
D215: Table from ASHRAE Std 62.1, 2013 version (I don't have the most recent version, and it cost $125 to purchase. I have asked an ASHRAE contact whether they could provide the more updated version). The design airflow is the sum of the people (max capacity) and the area terms. Applies to USA
D216: The standards from the table below will have been applied in the US for buildings built recently. Older buildings will have followed older standards. Old standards can also be obtained from the same ASHRAE page. E.g. for a building built in the US in 2005, look up the standard that was valid in 2005. Note that researchers do say that ventilation systems in old buildings are not always performing at the level they were designed to, due to a variety of maintenance problems.
D217: To use in the other sheets, use the calculation below (example of daycare):
D218: Rp | E218: 5 | F218: L/s/person | G218: From standard
D219: Ra | E219: 0.9 | F219: L/s/m2 | G219: From standard
D220: Occupant density | E220: 25 | F220: per / 100 m2 | G220: From standard
D221: Surface area | E221: 100 | F221: m2 | G221: For a specific location
D222: Height of room | E222: 3 | F222: m | G222: For a specific location
D223: Volume of room | E223: =E222*E221 -> 300 | F223: m3 | G223: Product of two above, for a specific location
D224: N occupants | E224: =E220*E221/100 -> 25 | F224: people | G224: Calculated according to standard, per values above
D225: Vent Rate | E225: =E224*E218+E221*E219 -> 215 | F225: L/s | G225: Calculated according to standard, per values above
D226: Vent. in h-1 | E226: =E225*3600*0.001/E223 -> 2.58 | F226: h-1 | G226: This is the parameter you need to enter in the other sheets for vent. rate
C279: Below are the additional tables from the standard, for other situations - enlarge the images to look for your situation of interest
C298: Standards for other regions should be roughly similar, but follow guidelines from other associations or national governments.
A300: Decay rate of the virus infectivity in aerosols (indoors and outdoors)
B301: There are several studies for this parameter that don't quite agree. I am consulting with the authors about what they recommend we use as a default
B302: Literature values in h-1
B303: 0.63 | C303: https://www.nejm.org/doi/full/10.1056/nejmc2004973
B304: ~0 | C304: https://www.medrxiv.org/content/10.1101/2020.04.13.20063784v1 (lower confidence in this result due to lack of replicates)
B305: 0.2 - 1 | C305: https://www.tandfonline.com/doi/full/10.1080/22221751.2020.1777906
B306: =0.008*60 -> 0.48 | C306: https://academic.oup.com/jid/advance-article/doi/10.1093/infdis/jiaa334/5856149
D307: Online estimator based on above (includes UV = 0, which is what should be used in most indoor spaces)
D308: The equation in the estimator is also implemented below. Enter your RH, T, UV index (0 indoors) to get decay estimate
D309: Graciously provided by Dr. Paul Dabisch, Dept. of Homeland Security, USA
D310: T (C) = | E310: 20 | F310: This is the input
D311: T (F) = | E311: =9/5*E310+32 -> 68 | F311: For display only
D312: RH (%) | E312: 60 | F312: (20 to 70, in % units)
D313: UV index | E313: 0 | F313: 0 (indoors) to 10 (full sun noon)
D315: Virus decay | E315: =(7.56923714795655+1.41125518824508*(E310-20.54)/10.66 + 0.02175703466389*(E312-45.235)/28.665+7.55272292970083*((E313*0.185)-50) / 50 + (E310-20.54)/10.66*(E313*0.185-50)/50*1.3973422174602)*60 -> 1.620973378 | F315: h-1
A327: Deposition of virus-containing aerosol to surfaces
B328: An important uncertainty is the size range of the infective particles. Here we assume 1-5 um, based on our read of the literature
B329: Literature values in h-1
B330: 0.2-2 | C330: https://www.sciencedirect.com/science/article/abs/pii/S1352231002001577 | H330: (depends on air speed, particle size range)
B331: 0.24 | C331: https://www.sciencedirect.com/science/article/abs/pii/S1296207418305922?via%3Dihub | H331: (as interpreted in Buonnano et al. 2020a)
A333: Virus removal rate of other control measures
B334: For a portable HEPA filter unit, use this calculation (metric units):
C335: HEPA flow rate | D335: 440 | E335: m3 h-1
C336: Room size | D336: =7*7*3 -> 147 | E336: m3
C337: Removal rate | D337: =D335/D336 -> 2.993197279 | E337: h-1 | F337: Enter this value in cell for additional control measures
B338: HEPA filter calculation (US units):
C339: HEPA flow rate | D339: 260 | E339: cfm (cubic feet per minute)
C340: Room size | D340: 5200 | E340: ft3
C341: Removal rate | D341: =D339/D340*60 -> 3 | E341: h-1 | F341: Enter this value in cell for additional control measures
B342: A more elaborate calculator for HEPA filters can be found here: https://tinyurl.com/portableaircleanertool
B344: For recirculated air, either with or w/o filter, w or w/o germicidal UV or other measures
C345: For air that is recirculated through an HVAC system, there are also particle losses. We know since virus RNA has been found in the surfaces of HVAC system, and also from basic aerosol dynamics and losses in tubing. This will happen even if there is no filtration, and will be enhanced by length of ducting and bends. If there are filters in the HVAC system, that will increase the removal. See the calculator below (HT Jim Bagrowski)
C346: If you have some other "air cleaner" in the ducts (ionic system etc.), you also need to estimate it in the same way as the previous item, depending on the rate of recirculation, and the efficiency of the system in removing particles.
C347: Recirculated flow rate = | E347: 300 | F347: m3 / h | G347: Can also enter values in cubic feet per hour, if next row is in cubic feet
C348: Volume of room = | E348: 100 | F348: m3
C349: Filter efficiency = | E349: 0.2 | G349: Enter from table below, I recommend value in 1-3 microns. Example = MERV 8
C350: Removal in ducts, air handler = | E350: 0.1 | G350: Assuming some losses in bends, air handler surfaces etc. Just a guess
C351: Other removal measures = | E351: 0 | G351: Germicidal UV (or other systems), from specs or the system
C352: ACH for additional control meas = | E352: =E347/E348*min(E349+E350+E351,1) -> 0.9 | F352: h -1 | G352: Enter this value in cell for "Additional control measures"
C354: - Table of filter efficiency from https://www.nafahq.org/understanding-merv-nafa-users-guide-to-ansi-ashrae-52-2/ We are not sure the particle size that contains more virus, but suspect it is 1-10 um mostly, based on our read of the literature. Therefore using 1-3 um to be conservative. - The curves are useful to understand the size dependence of filtering for different MERV grades in more detail. See this link https://www.nafahq.org/merv-filter-models/ for the details about the curves, and a lot more technical information on filtering.
A377: Disease prevalence in your area - Probability of someone being infected in a given region and time period
B378: This depends on the state of the pandemic in a given region and time period, as well as the dynamics of the disease and its infectivity in different types of cases, which are not known very precisely
B379: For the US, you could use the online tools below to find the current estimated fraction of infectious people in a given county
C380: https://sites.google.com/compassfortcollins.org/coronavirusrisk/home
C381: https://www.descarteslabs.com/resources/covid-19-now
C382: https://covid19risk.biosci.gatech.edu/
C383: On a simple test for Boulder on 22-Jul, the tools give 0.08%, 0.25%, 0.49% infectious respectively. I have asked for input from epi folks about which may be more accurate, or whether the uncertainty is that large
B384: For other countries, this tool has country-level estimates of the current fraction of infected
C385: https://covid19-projections.com/
C386: For the UK, you can get estimates from here: https://covid.joinzoe.com/data
B387: This parameter is not easy to quantify accurately, but one can hope to get the order-of-magnitude right from the disease prevalence data and/or the epidemiological models. People are thought to be contagious mostly the week around the onset of symptoms, so that has to be taken into account in the estimates. Also there is a fraction of undetected contagious cases (asymptomatic / presymptomatic), which will increase transmission. Plus one would hope that a major fraction of the cases that are in quarantine or a hospital and not transmitting the disease much. The uncertainty on the fraction of contagious individuals in the community is one more reason why the absolute risk values will be uncertain, but the relative risks will still be robust.
B388: A range of values is estimated below to provide some bounds. An in-between value of 0.3% is used as default, as the approx. geometric mean of the results below
C389: One estimate for New York City (NYC) at the height for their large outbreak in March-May 2020
D390: Fraction of of the population that got infected over a period of 2 months | H390: 0.2
D391: Duration of infective period | H391: 7 | I391: days
... 81 more rows

Sheet FAQs
A2: Frequently Asked Questions (FAQs) about Estimator of COVID-19 Aerosol Transmission
A4: FAQs about the estimator: big picture
A6: Is there some general explanation of your tool for a general audience?
B7: Yes, see this CIRES Press Release: https://cires.colorado.edu/news/covid-19-airborne-transmission-tool-available
B8: National Geographic has created a simplified version of this tool, which is easier to use to compare different cases: https://www.nationalgeographic.com/science/2020/08/how-to-measure-risk-airborne-coronavirus-your-office-classroom-bus-ride-cvd/
B9: Also this presentation: https://twitter.com/jljcolorado/status/1283868965849059328
B10: Robin Lloyd has published a short summary in Scientific American: https://www.scientificamerican.com/article/coronavirus-news-roundup-for-june-20-june-26/
B11: It has been covered in other news articles, too many to keep track of them here
A13: Are there examples where you or others have applied the estimator to investigate some cases in more detail?
B14: There has been limited time to document cases. I list below some useful cases that people have reported using the tool. If you run the tool for a given case, do share your results in some form, e.g. blog post, Twitter, or just a Google Doc that's publicly viewable, and send me the link for posting here.
B15: This blog post from Prof. Andrew Maynard applies the model to a one semester course at his University and explores the trends in the results
B16: Ryan Davis (a PhD graduate of our program at CU-Boulder) summarized his results for college classroom situations in Twitter
A18: How can I let other people know about the estimator?
B19: You can send them the link to this online document: https://tinyurl.com/covid-estimator
B20: Some people have trouble with the tinyurl links, in that case you can share the direct (if more cumbersome) link: https://docs.google.com/spreadsheets/d/16K1OQkLD4BjgBdO8ePj6ytf-RpPMlJ6aXFg3PrIQBbQ/edit#gid=519189277
B21: If more than 100 people are trying to view the document, Google sends extra people automatically to the View-only version, which does not allow use of the File menu. In that case the links on the green area on the top right of the Readme page allow making a copy into Google Drive, or downloading into Excel
B22: If you use Twitter, you can also re-tweet the original release Tweet: https://twitter.com/jljcolorado/status/1275466006312304640
A24: I get some Excel errors when I open the spreadsheet, do these matter?
B25: The downloaded spreadsheet can give some nominal errors when opening in Excel, but if you say "yes" it seems to run fine, so we don't think those affect anything. Nobody has told me that it doesn't work for them, once they download.
B26: I don't know how to change that, since it is a native GSheet and Google is converting it into Excel. Sorry for the confusion this may cause. (If any of you knows how to fix this detail, let me know)
A28: ¿Puede traducir esta herramienta al castellano / español? (Can you translate this tool into Spanish?)
B29: En principio podría porque soy de Zaragoza (España), aunque llevo 27 años en Estados Unidos. Pero también lo pueden hacer los usuarios poniendo el texto en el traductor de Google. De momento estamos cambiando cosas varias veces al dia, añadiendo explicaciones, corrigiendo algún error, añadiendo nuevos aspectos del cálculo, añadiendo casos etc. Así que recomendamos siempre bajar la ultima version antes de empezar a usar la herramienta. Y mantener dos versiones me llevaria mas tiempo de el que tengo ahora. Si las cosas se calman y la herramienta no esta cambiando (y todavía es útil), entonces haria el esfuerzo.
A31: How do I cite this estimator?
B32: Something like "J.L. Jimenez, COVID-19 Aerosol Transmission Estimator, https://tinyurl.com/covid-estimator, accessed 1-Jul-2020" for scientific documents, or just the link for online documents should be sufficient. I do intend to keep the document online indefinitely. For scientific documents you should also cite the papers in which it is based (Miller et al., Buonnano et al. 1 & 2, Riley et al.)
A34: I would like to use this estimator, but this is very difficult to understand. What can I do?
B35: The experience so far from the feedback we are getting is that scientists (or people with quantitative backgrounds in other professions) are able to quickly understand the estimator and put it to use, sometimes asking us a question or two. People without a science or quantitative background have more trouble. I can't support users with limited background individually, unfortunately. If you are in the latter situation, I would reach out to someone you know who may be more familiar with science, physics, math, computer programming etc. and see if they can help.
A37: FAQs about the estimator: parameters and model formulation
A39: What is the structure of the model?
B40: It is a box model to track a pollutant (in this case the virus) in an indoor space, see for example Chapter 3 of Daniel Jacob's book http://acmg.seas.harvard.edu/people/faculty/djj/book/bookchap3.html#pgfId=112721, plus the Wells-Riley model of infection https://academic.oup.com/aje/article-abstract/107/5/421/58522
A42: I don't use feet or square feet, can I just work on metric units?
B43: Yes, the sheets take the dimensions in feet, but they immediately convert them to meters, and use the meters in all subsequent calculations. So you can type your values in m or m2 directly into those cells (and ignore the ones in feet), and the spreadsheet will work the same.
B44: One exception is the surface area per student in the "Classroom" sheet. You will need to update that calculation to work with students / m2
A46: How do I model a situation in which only some people are wearing masks?
B47: You can run two cases, one with masks and one without, and that will bound the probability of infection.
B48: To get the average effect, you can multiply the mask efficiency by the fraction of the people wearing masks, for both emission and inhalation. So for example if 50% of the people are wearing surgical / clothy masks, you would enter 25% (0.5 * 50%) for emission efficiency, and 15% (0.5 * 30%) for inhalation efficiency
B49: To estimate a specific case (e.g. infected person not wearing a mask, susceptible person is wearing a mask), just adjust the efficiencies of emission and inhalation accordingly in the sheet.
A51: If I use the classroom-campus sheets, and I double the class duration and half the number of classes, the number of cases increases. Is this a bug?
B52: If you shorten the semester to 6.5 weeks, double number of class periods, to get the same h/ semester for student and instructor, the number of cases stays the same
B53: If you double the class period to 100 min, but reduce the number of class periods (for students) from 2 to 1 in the default case, the number of cases increases from 593 to 704 student cases. This is slightly non-linear because the longer class period allows more accumulation of infectious quanta in the room, so the second 50 min. have a higher probability of infection than the first 50 min.
A55: How good is the assumption that the air is well mixed within the room?
B56: How good this assumption is depends on the specific situation. If a 6ft / 2 m distance is kept, it should apply approximately in many situations. And on average, inhomogeneities will partially cancel out. For example, assume an extreme example of a room where 1/2 of the volume has 0 quanta / m3 and the other 1/2 has twice the average quanta concentration. As long as the number of inhaled quanta is low (< 0.3 or so), the infection risk is linear with the quanta (1- exp(-qi) ~ qi, per https://en.wikipedia.org/wiki/Taylor_series#Exponential_function), and the average number of infections will be the same as it would be in a well-mixed room. At higher concentrations the well-mixed situation is riskier, due to the saturation of the infection probability due to the exponential function.
A58: What is a quanta?
B59: A quanta is defined as an infectious dose of the aerosol pathogen, whose inhalation leads to infection. Quanta are discrete and present at very low concentration. For example a given room may have 3 quanta (analogous to pathogen-loader aerosol particle(s)) floating in it, and a susceptible person may or may not be "lucky" enough to inhale at least one of the quanta, given a certain breathing time in the room. The exponential form of the probability equation reflects the probability of a susceptible person in the room inhaling at least one quanta, based on a Poisson statistical distribution of the number of discrete quanta inhaled by a susceptible person present in the space, given a certain aerosol quanta concentration in the room and an inhalation time. As a result, if the average inhaled amount is one quanta, then 63% of the susceptibles will be infected. It is part of the Wells-Riley model of aerosol infection, see https://academic.oup.com/aje/article-abstract/107/5/421/58522
B60: Quanta are specific for each disease. They lump together in an empirical parameter the rate of emission of viruses as part of respiratory particles in exhaled breath, the infectivity of the viruses upon emission, the particle size distribution of the emissions, the deposition efficiency and deposition location in the respiratory track of the susceptible person of those particles, and the probability that deposition leads to infection. Trying to model each of those parameters explicitly is daunting. As each parameter by itself is quite uncertain, especially for a new disease like COVID-19, the resulting uncertainty of the fully detailed model would be enormous. We can instead use the concept of quanta, and calibrate the emission rate to known outbreaks of the disease. In this way we can do realistic modeling (as in this tool) even with incomplete information about all those factors.
A62: What quanta should I use for singing or shouting?
B63: We believe the value of 970 q h-1 is realistic for the Skagit Choir case. It does seem that this was probably a "super-emitter" case, i.e. a person who was emitting an unusually high amount of virus. It is suspected that such "super-emitters" may be partially responsible for super-spreading events (see https://www.sciencemag.org/news/2020/05/why-do-some-covid-19-patients-infect-many-others-whereas-most-don-t-spread-virus-all), in addition to environmental conditions that help the virus transmit at the room-level. Values for loudly speaking / singing recommended by Buonnano range 60-400 q h-1 depending on the level of activity of the person (see "Readme" sheet). So it depends what you are trying to simulate. If you want to see the probability for a worst-case scenario, then use 970 q h-1. For a more typical case, we would recommend 150 q h-1. In any case it is the RELATIVE risk when you change something (ventilation, masking...) that is most meaningful, and that will be much more similar for the two emission rates.
A65: What about resuspension of virus-laden particles that have settled on the floor?
B66: This is a concern. I.e. large drops or aerosol particles settle to the floor (this is accounted for in the estimator for the aerosols). The people walking in the room, or while vacuum cleaning, put some of those particles back into the air. Ideally we would add that to the model, but it is quite uncertain and complex to do so. (If you have ideas about how to implement a quick estimate, let me know)
A68: The air within a room is not always well mixed. Doesn't that lead to over- or under-estimating infection risk?
B69: One limitation, really of the box model of mixing and dilution (not of the Wells-Riley infection model) is that the air is assumed to be well mixed in the space. On average, this effect will cancel out: e.g. (to make a simple extreme example) if in a room 1/2 of the air contains all the virus, due to poor mixing, and the other 1/2 contains no virus. Then the people on the first half will have twice the chance of infection, while the people on the other half will have zero chance of infection. So that the average probability of infection will be the same. This holds at low quanta concentrations, relevant for most situations, because the infection model is linear to a very good approximation there.
B70: At very high concentrations, then the model is non-linear and such an average will underestimate the risk (but given all the uncertainties in the model, this is a small problem).
B71: If you have enough information for a specific situation, you can model one room as several sub-rooms in the estimator. Just one copy of the master sheet per sub-room, each with its particular parameters, and then add the results for the whole room. This will be quite complex in most situations, and in particular airflow patterns in rooms are extremely dependent on the specific room, ventilation pattern, location of occupants etc. but experts and researchers might derive useful information this way.
A73: The estimator only considers one space, but what if a person moves through a building, spending time in multiple spaces?
B74: Run the estimator for each space, sum the quanta inhaled, and then apply the Wells-Riley infection probability equation (1-exp(-total quanta inhaled))
A76: Are there limitations to the Wells-Riley model formulation?
B77: The W-R model can no doubt be made more sophisticated with attention from the scientific community. A possible example is listed below.
B78: High exertion activities (HEA) may lead to more efficient infection. Two effects are already accounted for in the model: (a) HEA lead to more respiratory particle exhalation by the infective (which translate to higher quanta emission rates), and (b) also to more virus inhalation by the susceptible due to a higher breathing rate (both effects are already in the model). But a possible third effect is not captured by the model: (c) that the virus in the air is more infective under certain high flow breathing situations. HEA lead to increased breathing velocity and depth of inhalation. Velocity would affect the natural filtration via nose hairs or the upper respiratory tract. Depth of inhalation would determine the amount of quanta inhaled into the recesses of the lungs, versus a shallow breath. A final mechanism is that mouth breathing vs nose breathing may have different risk profiles. This could potentially apply to choirs, and also to singing in a karaoke, or aerobic exercise in a gym. (HT Howard Chong)
B79: Conversely, the model does not predict how the severity of the infection may vary with the dose. For COVID-19, there is emerging evidence that the severity of the infection is lower at low doses than at high doses, which is a benefit of wearing masks. See this article which summarizes the science as of mid-July 2020: https://www.latimes.com/california/story/2020-07-21/masks-help-avoid-major-illness-coronavirus
B80: The W-R model has been used by a small community for years, while the majority of the infectious diseases field mostly ignored aerosol transmission of diseases. With the intense current focus of the scientific community on this topic, it is very likely that multiple improvements and tweaks to the W-R model will be proposed. However, W-R is the best we have now, and it should capture the first-order effects, given all the uncertainties.
A82: Is there a threshold of inhaled quanta below which there is no infection?
B83: The Wells-Riley model does not have a threshold in its usual formulation. Simply the probability of infection goes down as the number of quanta inhaled goes down. I am not aware of any evidence of a threshold for COVID-19, so I would not assume that one exists. But if the quanta inhaled is very low, the probability of infection will be very low too.
A85: What happens if the infected person leaves after X min, but the susceptible person stays? Or if a 2nd infected person comes in after Y min?
B86: This type of model can easily account for those situations. In this case I am choosing to keep things simple, so that they are more understandable. For those with calculus abilities, just follow the derivation of the solution in Miller et al. and you can use equation 3 in there, and stitch together different periods. You can modify the solution for the case of interest there, and then just modify the formula in the spreadsheet.
B87: The tool released by Buonnano et al. does include a slightly more complex scenario, so you could try it with that tool.
A89: Since the parameters are uncertain, shouldn't the inputs and outputs be represented as probability distributions?
B90: Yes. In this model I am choosing to keep things simple so that it is easier to understand. But one could implement a MonteCarlo simulation using the probability distributions of the parameters and the model here.
B91: The tool released by Buonnano et al. (based on https://www.medrxiv.org/content/10.1101/2020.06.01.20118984v1) is based on a model which includes this methodology. The first version will not include the MonteCarlo option, but a subsequent version may do so. The tool released by Prasad Kasibhatla does allow performing MonteCarlo simulations, see link below.
A93: What level of infection risk is acceptable?
B94: First, keep in mind that the uncertainties are high, given that we have limited information about the quanta emissions in particular, and you shouldn't overinterpret the results. If you get 1% for a case, it may really be 0.3% or 4%, but it won't be 0.001% or 100%.
B95: Second, which infection risk is tolerable is a question for the people involved, not for me. I.e. we all do activities that involve some risk, and we tolerate it because the risk is low enough compared to the benefit. For example we go places in cars and planes, even though there is a small chance of death or injury by doing those things, because we value the travel more. For example, given the odds of dying in car and airplane travel, we are accepting a risk of 0.00006% and 0.00001% each time we travel respectively (estimated from odds of death from https://www.nsc.org/work-safety/tools-resources/injury-facts/chart, assuming traveling by car 1/2 of the days, by plane 8 times a year, during a 75 yr lifespan). For things like cancer risk, the US EPA uses a chance of 1 in a million (0.0001%) as the limit. Some researchers have suggested that people may be willing tolerate a chance of 1 in 1000 (0.1%) of COVID-19 infection across all their activities (not just one activity which you may simulate with the estimator such as going to class). But you should be the one to determine this for yourself and your situation.
A97: Why haven't you included eye protection?
B98: We do know that COVID-19 can be transmitted through the eyes. So if virus-laden aerosol particles land on the eyes, infection can result.
B99: For this reason we recommend wearing eye protection, such as glasses, goggles, etc. in indoor or crowded outdoor situations.
B100: However, there is no information we know of about the relative importance of transmission through inhalation or through the eyes, so it is not possible to quantitatively include the impact of eye protection. The estimator assumes that the inhalation route is dominant.
A102: Can I use the estimator to model the time series of infections for the students in my class over an academic year?
B103: You would need a more complex model than this one. This is for two reasons: (a) this model only accounts for aerosol transmission, but students may transmit the disease (during school time) through the contact or droplet routes as well, e.g. if distancing is not well followed. (b) most importantly, the students are part of a larger society, they may get COVID-19 outside school, e.g. from a sibling that goes to a different school, their parents, their friends when they interact outside of school or at a party, when they travel out of town etc. So one really needs an epidemiological time series model that approximately accounts for all the interactions in society. This aerosol model addresses a smaller piece, and can perhaps be used to fine-tune some of the parameters that go into epidemiological models.
A105: Can I use the estimator to model the transmission of other diseases that have some fraction of aerosol transmission?
B106: Yes, the mathematical model is the same. Mainly two parameters change: the quanta emission rate, and the decay rate of the infectious agent. Some quanta emission rates from the literature are below in italics (from https://www.medrxiv.org/content/10.1101/2020.06.15.20132027v2 and references therein). For tuberculosis, the decay rate is ~0. For the other diseases, I would assume the same as for COVID-19 as a first approximation, or search the literature for more accurate rates.
B107: Influenza: 15-128 q h-1
B108: Measles: 5580 q h-1
B109: Tuberculosis: 1.25 - 30,480 q h-1 (Decay rate ~ 0)
B110: SARS: 28 q h-1 (The decay rate for SARS is very similar than for COVID-19, see: https://www.nejm.org/doi/full/10.1056/nejmc2004973)
B111: In reality, much like the COVID-19 quanta emission rate can be quite variable, the same is the case for other diseases. The table below for tuberculosis summarizes several studies, and illustrates the range of variability. Ref: https://www.ingentaconnect.com/content/iuatld/ijtld/2003/00000007/00000011/art00002
B114: An additional detail is that the particle size distribution containing the infective agents may vary between the different diseases, which in turn will affect the deposition rate (per e.g. https://www.sciencedirect.com/science/article/abs/pii/S1352231002001577). The impact of this uncertainty can be evaluated by varying the deposition rate, see Readme Sheet.
A116: FAQs about using CO2 as an indicator of risk
B117: This method described in Milton et al. (2003). Since both virus-containing respiratory particles and CO2 are exhaled, high CO2 concentration can be an indicator of potentially high concentration of virus-containing particles. Many researchers have proposed that CO2 sensors be installed with "traffic light" indicators (green / yellow / red) so that occupants can be warned of problems with the ventilation rate, or excessive crowding or duration.
B118: The CO2 emission rate is a function of the person's age, gender, and body mass, as well as the level of activity. Find the emission rate relevant to your case in the tables in the Readme page.
B119: A tool developed by Dr. Andy Persily of NIST to model CO2 vs. time in indoor spaces can be found here: https://pages.nist.gov/CONTAM-apps/webapps/CO2Tool/#/ It allows comparison with the results of our tool, and exploring the effect of some variables in a graphical way.
B120: There are several limitations of this method: (a) the emission of respiratory particles increases mores strongly with talking and singing, while CO2 changes less for those activities (b) masks can filter exhaled respiratory particles but not CO2 (c) the virus loses infectivity while in aerosols, but CO2 is inert and is only lost to ventilation (d) virus-containing particles are deposited to the ground / walls / furniture, and the virus decays in them, while those effect do not happen for CO2 (e) virus-containing particles are only emitted by the infected person, while everyone emits CO2 (f) Cooking or heating with natural gas, propane, wood etc. can emit CO2 which is unrelated to breathing (g) Outdoor CO2 background can decrease due to crop uptake during the growing season in agricultural areas, or increase due to pollution. These changes are generally below +/-50 ppm, and thus are small compared to the range of interest for indoor air quality
B121: Some colleagues have recommended to keep indoor CO2 below 600-800 pm to reduce the chance of COVID transmission (per this paper https://onlinelibrary.wiley.com/doi/pdf/10.1111/ina.12639). That sounds like a reasonably low level, although I have not seen a quantitative justification (pls send it my way if you find it). For a more robust result, it is recommended to build a curve of infection risk vs CO2 concentration for your situation of interest. A CO2 sensor can be used to monitor an indoor space.
B122: Indoor CO2 sensors with a display are available in the ~$100 range. E.g. https://www.amazon.com/Aranet4-Home-Temperature-Ink-Configuration/dp/B07YY7BH2W and https://www.amazon.com/GZAIR-Temperature-Relative-Mountable-0-5000ppm/dp/B08644N7QD I've reached out to colleagues about recommendations, but that type of sensor is what you would need for an indoor space
B123: The global background CO2 concentration increases over time due to fossil fuel burning. The changes are small compared to the changes in indoor levels due to human breath, but for completeness you can look them up here: https://www.esrl.noaa.gov/gmd/ccgg/trends/
A125: FAQs about improvements to this estimator
A127: Can you add other outbreaks such as the Guangzhou restaurant or others?
B128: Yes. The Guangzhou restaurant has already been analyzed with a similar model by Buonnano et al. (2020b) and can be explained by the model. I will add it here as time allows. For many outbreaks the problem is lack of information on ventilation, which is critical for a quantitative analysis.
A130: FAQs about comparison of this estimator to other related models
A132: Are there other models available to try to address this problem?
B133: Yes, there are multiple other models. So far all try to do the same thing, estimate room-level transmission (away from "close contact" situations like talking face-to-face at 1-2 m), using a box model for the room, and the Wells-Riley infection model.
B134: I am listing here all the models that I know of that are public. There are many more private ones that people are developing, so far all different versions of the same ideas, often customized for a specific situation of interest. If you know of a model that's not listed here, let me know.
B135: Airborne Infection Risk Calculator: A tool for estimating infection risk indoors thru aerosols, developed by Profs. Lidia Morawska, Giorgio Buonnano, Luca Stabile and Dr. Alex Mikszewski. Conceptually similar to this online tool, similar results in tests - Free from: https://research.qut.edu.au/ilaqh/projects/expiratory-aerosols-and-infection-spread/ Mirrored at: https://www.unicas.it/siti/laboratori/lami-laboratorio-di-misure-industriali-sezione-meccanica/airborne-infection-risk-calculator.aspx
B136: Prof. Prasad Kasibhatla of Duke Univ. has adapted the classroom / campus sheets here to take into account the ranges of uncertainty of the parameters through a MonteCarlo simulation at https://tinyurl.com/yxfd23kr (also a Google Sheet that can be downloaded and run in Excel). His version will be useful for advanced researchers who are familiar with the MonteCarlo technique. If you don't know what that is, stay with my tool. A web version of this tool, specific for classrooms, is posted at http://covid-exposure-modeler-data-devils.cloud.duke.edu/
B137: Alfred Trukenmueller in Germany <alfred.trukenmueller@gmx.de> has developed a similar spreadsheet (in German) based on the Buonnano et al. model. He has made it available at https://www.magentacloud.de/share/e7esxr9ywc
B138: M. Evans has submitted paper with a similar model: https://www.medrxiv.org/content/10.1101/2020.05.21.20108894v3 No software is available to our knowledge
B139: Prof. Charles Stainer at the Univ. of Iowa has developed a similar tool (developing part of it independently, and adapting the infection model in our tool), into a custom tool for that University. The results are consistent with ours. It is available here: https://www.stanierlab.org/post/covid-19-aerosol-transmission-calculator-customized-to-iowa A news story on their tool is here: https://dailyiowan.com/2020/07/16/university-of-iowa-researchers-use-aerosol-transmission-calculator-assess-classroom-safety/
B140: NIST has also released the FaTIMA model, see next FAQ
B141: So far the results of all the models are very similar in the comparisons we have done. Nathan Skinner (Park Street Church, Boston) has compared this model with the Buonnano and Evens models for their case, and found consistent results. If you find any discrepancies let us know. Perfect agreement is not expected due to small differences in the model parameters or structures used.
A143: Is your model similar to the FaTIMA model from NIST?
B144: FaTIMA is at https://www.nist.gov/services-resources/software/fatima
B145: Yes, both tools are trying to address the same problem and using similar physics and experimental results, but do it slightly differently. Both should be useful to those interested
B146: FaTIMA currently has more detail on the building and control measures and one can enter those parameters more directly, while in our estimator those are entered as first order rates already.
B147: FaTIMA does not include an infection model, however, while our estimator does. So with FATIMA you can estimate relative exposures, but not infection rates.
B148: FaTIMA also does not presently include the effect of masks, or of the breathing rate (which varies with activity level)
B149: Our estimator has all the equations exposed in the spreadsheet formulas, so it is easier to figure out what's going on. Neither model is that complicated mathematically, but having the code be "open source" may get more people to understand what we are doing, and then potentially incorporate it into other tools etc. Documentation for FaTIMA is at https://doi.org/10.6028/NIST.TN.2095
B150: Due to the format it may be easier for our estimator to expose different cases, classroom, bus, protest, choir... and have them all there as different sheets. This is only about communication, not the model per se.
B151: The most important output is to estimate the relative risk of different actions, and that can be done with both tools (except for masks)
B152: This specific FAQ was written in 25-Jun-2020. Both tools may evolve in the future.
A154: Can I develop my own model or tool, using the information here?
B155: This model is distributed under the GNU Public License https://www.gnu.org/licenses/gpl-3.0.en.html
B156: You are free to adapt this model in any way that would be useful (as long as you don't charge others for the model itself). That was an important reason to make the tool available in this "open source" way, so that we could demystify aerosol transmission modeling, and so that smart people everywhere could do creative things building on this knowledge. But please make sure that you understand the model well. Importantly, I recommend that you compare ("benchmark") your results of a new tool against those of this tool, but multiple sets of parameters, to gain confidence that the new tool is free of bugs.
A158: FAQs about mitigation techniques for COVID-19 aerosol transmission
A160: What do you recommend in terms of masks, face shields etc?
B161: Wear the best face mask you can get. N95 / FFP2 are best if you pay attention to fitting it well around your face and closing gaps, but in many countries there is still limited supply, so we shouldn't deplete their availability for health care and other essential workers. But if you already have one, do wear it by all means. Otherwise surgical masks are the next best, followed by cloth masks. Cloth masks can be quite good if fitted well. See this video to understand the fit: https://twitter.com/jljcolorado/status/1280935408398766080 (and don't stand behind someone with a poorly fitted mask). Face shields provide very little protection, see this thread and its references: https://twitter.com/jljcolorado/status/1278691722449481729
B162: In addition, since we do know that COVID-19 can be transmitted through the eyes, wear some eye protection. Ideally some safety glasses that are pretty closed around your eyes, limiting the airflow and thus the potential for aerosols to deposit there (see e.g. https://www.mcmaster.com/safety-glasses/). Prescription safety glasses can be obtained from e.g. https://www.rx-safety.com/shop/master-safety-glasses/prescription-safety-glasses/prescription-safety-glasses-rx-jy7/# (I bought one from them and it is ok). Otherwise regular glasses or sunglasses will help some, but not as much.
B163: This precautions are most important indoors away from your home, or outdoors in crowded situations. In less crowded situations outdoors I wear a surgical mask and my regular glasses.
A165: I see that ventilation can be used to reduce transmission. What can I do for my specific case?
B166: See this article for ideas: https://www.sciencedirect.com/science/article/pii/S0160412020317876
B167: Note that "ventilation" in this context means replacing indoor air with outdoor air. Or potentially filtering indoor air, or subjecting it to germicidal UV light. Moving the air with fans or similar is not "ventilation" but "mixing". It probably hurts by spreading virus-laden particles around faster. It also has a compensating positive effect as the turbulence leads to faster particle deposition to walls and ground.
A169: Is a portable HEPA filter unit useful?
B170: A portable HEPA filter system is very useful, as it can remove virus particles from the air. These can be used at home or office situations. They do need to be of a size appropriate to the size of the room. If it is a big room, you may need a couple. Units that have been tested and certified by the Assoc of Home Appliance Manufacturers are listed at https://ahamverifide.org Prof. Shelly Miller of CU-Boulder is an expert on this area and has written a blog post about this: https://shellym80304.com/2020/06/15/a-hopefully-helpful-short-report-on-air-cleaners/ You can download her report from that page. The table below is from that report. But there are many more good filters that are not listed on that table. Follow the instructions in Prof. Miller's blog. This one was purchased by a very knowledgeable colleague for her home: https://www.sylvane.com/coway-airmega-300-air-purifier.html You will see for this one that the clean air delivery rate (CADR) is 260, and the units are cubic feet per minute. So divide by the volume of your room, and multiply by 60 min/hour to get the air exchange rate that you are adding to your room by running the air cleaner.
B171: See the calculation in the Readme page.
A174: Is reducing the duration of indoor interactions useful?
B175: Yes, this is very useful. In principle the number of infectious particles inhaled will increases proportionally to the duration of the event. But it is worse than that: the risk of infection increases more than linearly with the duration of the event. This is because (assuming the air is clean at the start) the infectious particles accumulate in the room, and e.g. the second 30 min. have a higher concentration than the first 30 min. This can be explored with the estimator, change the duration of the event and look at the output vs duration (e.g. in a graph). So we recommend to keep all indoor activities as short as feasible for that activity.
A177: Is germicidal UV a good idea?
B178: Generally yes, as long as the UV is away from people to avoid serious eye damage, and as long as ozone is not produced.
B179: See this webinar from Prof. Shelly Miller about it: https://shellym80304.files.wordpress.com/2020/05/isiaq-guv-2-compiled.pdf
B180: New systems using 222 nm light are very promising, as (unlike older systems based on 254 nm light) it seems to be safe for people. See: https://www.nature.com/articles/s41598-020-67211-2
B181: That said, it is being marketed very aggressively by the companies supplying it, and it is not always the most cost-effective solution (purchase, installation, and maintenance are all significant). Improved ventilation and mask wearing should come first. See this paper for an overview of the building-level strategies: https://www.sciencedirect.com/science/article/pii/S0160412020317876
A183: A company is promoting an air cleaning system using ions, plasmas, or OH radicals. Do these systems work?
B184: Be very careful with that type of system. They are being promoted very aggressively, but often there is very little detail given about how the system really works. In some cases claims are made that are obviously wrong or suspicious. See this NYT article as an example: https://www.nytimes.com/2020/06/23/us/politics/trump-arizona-church-covid.htm Oxidation systems will turn volatile organic compounds (VOCs) in the air into more oxidized species, NOT into CO2 and water, and the oxidized species and aerosols formed may actually be worse for health than the original VOCs.
B185: My group has done extensive research on similar systems, from the point of view of atmospheric chemistry applications, see https://doi.org/10.1039/C9CS00766K. I have not seen a lot of peer-reviewed analyses of the details of these "advanced" cleaning systems. There is one in this paper: https://iopscience.iop.org/article/10.1088/1361-6463/ab1466
A187: ?Tiene recomendaciones en espanol / castellano?
B188: Si, leerlas aqui: https://twitter.com/jljcolorado/status/1280516427158560781
A190: FAQs about COVID-19 aerosol transmission
A192: How can I learn more about aerosol transmission of COVID-19?
B193: I posted a series of 3 threads in Twitter in mid July-2020 with my views at the time. There are many arguments supporting aerosol transmission, and no good arguments against it that I have found (but there are a lot of misunderstandings and errors about aerosols, especially in the medical community). All 3 are linked here: https://twitter.com/jljcolorado/status/1283972530869420035
B194: There are many resources out there. We would recommend starting with the Miller et al. and Buonnano et al. papers (and their references) and Linsey Marr's Twitter feed: https://twitter.com/linseymarr See a profile of Prof. Marr at: https://www.nytimes.com/2020/06/12/well/live/Coronavirus-aerosols-linsey-marr.html
B195: Read her tweets from the start of the pandemic starting from now and in reverse chronological order, and you will find links to many many resources, and discussion of many of the important topics
A197: Some in the medical community deny that COVID-19 can be transmitted through aerosols. What do you think of this?
B198: Aerosol transmission has been controversial, but now Germany (https://www.rki.de/DE/Content/InfAZ/N/Neuartiges_Coronavirus/Steckbrief.html), the UK (https://www.gov.uk/government/publications/review-of-two-metre-social-distancing-guidance), the European CDC (https://www.ecdc.europa.eu/sites/default/files/documents/Ventilation-in-the-context-of-COVID-19.pdf), and the US CDC (describes it without using the name, https://www.cdc.gov/coronavirus/2019-ncov/prevent-getting-sick/prevention.html) have accepted aerosol transmission of COVID-19. WHO has recently shifted its position to allow for the possibility of aerosol transmission.
B199: Also REHVA (the European Federation of Heating and Ventilation and Air Conditioning Associations) and ASHRAE (the American Society of Heating, Refrigeration, and Air Conditioning Engineers) have already acknowledged aerosol transmission and recommended measures for their control: https://www.rehva.eu/fileadmin/user_upload/REHVA_COVID-19_guidance_document_ver2_20200403_1.pdf http://ashrae.org/file library/about/position documents/pd_infectiousaerosols_2020.pdf
B200: There are 3 ways of transmission: contact / fomite, when a person shakes hands or touches an object that an infected person has touched (and the infected person had virus in their hands from touching their nose, a cough etc.). However this is thought to be unlikely (see this from the US CDC https://www.cdc.gov/coronavirus/2019-ncov/prevent-getting-sick/how-covid-spreads.html ) , in particular because enveloped viruses like SARS-CoV-2 may have trouble surviving on hands though the studies are contradictory (https://pubmed.ncbi.nlm.nih.gov/6282993 https://www.medrxiv.org/content/10.1101/2020.07.01.20144253v1). The second way is droplet transmission, when large ballistic droplets in a cough or sneeze land on the eyes, nostrils, or mouth of another person. And the third is aerosol transmission, when particles smaller than ~50 microns (not 5 um as it is often repeated in error) are inhaled by a health person. The pandemic is likely being driven by asymptomatic or pre-symptomatic spread, and those people don't cough, leaving aerosol transmission as the main likely route. It is also likely being driven by super-spreading events, and those (like the Skagit choir) are very very hard to explain without aerosol transmission. See also the next FAQ.
B201: Unfortunately part of the medical community is literally stuck in science from 1910, and is only changing very slowly and with a lot of resistance. Wells in 1934 (https://academic.oup.com/aje/article-abstract/20/3/611/280025) already got it right, but he and others faced extreme resistance to the evidence. For historical / sociological reasons it has been very difficult to change this stance, despite accumulating evidence, including for COVID-19. For example, it is nearly impossible to explain the Skagit Choir case without aerosol transmission. I am part of a group of experts trying to change this, and I am also collaborating with Profs. Linsey Marr and Lydia Bourouiba and two historians on a paper on how things got to be this way historically. But we can't wait for the medical community to change its understanding before we get the pandemic under control.
B202: A problem with the WHO committee on disease transmission is that they rely most strongly on evidence from hospitals. That is where a lot of their experts work, and that is where they know the circumstances well. Cases from the community are much more difficult to analyze. They say that if transmission in hospitals is limited even when using surgical masks, therefore it must not go through the air. BUT hospitals have high ventilation, e.g. change the ventilation rate to 12 ACH (typical of hospital) in one of the cases in this model, and transmission goes down dramatically. And everyone is wearing at least surgical masks. And people appear to be more infectious around the onset of disease (when they are in the community) and less when they are very sick in a hospital. And the patients are not talking loudly or singing, they are mostly just breathing, which greatly reduces the quanta emission rate. Therefore it makes a lot of sense that aerosol transmission is limited in hospitals, but it doesn't disprove that it is major in the community. Together with "an anti-aerosol" bias of some critical experts, this partly explains why they are being so slow to accept the risk.
A204: WHO does accept that intubation in hospitals creates an aerosol risk, but aerosols are not important otherwise. What do you think?
B205: Intubation and similar procedures create huge amounts of aerosols, so transmission can happen even over short times and with high ventilation. It is also easy to detect. As described above in these FAQs, tuberculosis can release 30,000 infectious doses (quanta) per hr during intubation. But 12 doses / hr were enough to cause an outbreak in an office! We think the same is going on with COVID-19: WHO recognizes the obvious intubation source, but ignores that it happens at a much lower level all the time, and with longer times and low ventilation, it does matter.
A207: COVID-19 does not have a high reproductive number (R0). Thus can't we rule out that it is transmitted via aerosols?
B208: No. This is an argument often made by some in the medical community to argue that COVID-19 is not transmitted by aerosols at all. However the argument is flawed and based on a logic error. The argument is based on the assumption that a disease is either "airborne," and then it will display the high transmission characteristics of measles or chickenpox, or otherwise it is not transmitted by aerosols at all. No intermediate cases are possible. This assumption makes no sense, and there is no basis for it.
B209: The reproductive number R0 is not indicative of aerosol transmission. Anthrax or hantavirus (in N. America) are transmitted exclusively through aerosols, but their R0 = 0 for humans (not for other species). I.e. people get it from aerosols produced in other ways, not expired by humans. But after infection, the human respiratory system does not produce any infective aerosols, and person-to-person transmission does not occur. Very high values of R0 (e.g. measles, chickenpox, with well accepted values of 10-15, pers. comm. J. Tang) are indicative of aerosol transmission. Lower values do not rule out less-efficient aerosol transmission.Clearly if R0 can be 15 measles or it can be 0 (hantavirus) for diseases acquired through aerosols, it can be something in between (COVID-19).
B210: Different diseases have different fractions and ease of transmission via the aerosol route. For example tuberculosis is only transmitted via aerosols. COVID-19 is transmitted in several ways, including through aerosols. And it is a lot less transmissible than measles or chickenpox through aerosols, but that does not mean that it is not transmissible. We call it "opportunistic airborne" or "aerosol", meaning that it will transmit well through aerosols only under certain conditions: indoors, crowding, low ventilation, long duration (which can be quantified by the estimator), and likely, the presence of a "super-spreader" that emits a high amount of virus particles into the air.There is a lot of evidence to support this, see for example https://www.journalofhospitalinfection.com/article/S0195-6701(20)30245-0/fulltext and https://www.medrxiv.org/content/10.1101/2020.06.15.20132027v1
B211: No. This is an argument often made by some in the medical community to argue that COVID-19 is not transmitted by aerosols at all. However the argument is flawed and based on a logic error. The argument is based on the assumption that a disease is either "airborne," and then it will display the high transmission characteristics of measles or chickenpox, or otherwise it is not transmitted by aerosols at all. No intermediate cases are possible. This assumption makes no sense, and there is no basis for it.
B212: This can actually be explored with the estimator. To simulate measles, enter quanta emission rates in the range 5500 q h-1, and you will see that the infection rates are much greater than for typical COVID-19 situations.
B213: Tuberculosis is only transmitted through aerosols, but its R0 is difficult to quantify due to latency and other issues. But it can be high depending on the situation.
A215: But we are not absolutely certain, so why should we take precautions against aerosol transmission?
B216: Because of the precautionary principle: https://en.wikipedia.org/wiki/Precautionary_principle . The cost of doing nothing, if aerosol transmission is happening, is much higher than the cost of doing something, if aerosol transmission ended up being unimportant. Many measures to reduce aerosol transmission, such as reducing indoor crowding, masks etc. also limit other ways of transmission. And remember that absence of (complete) evidence is not evidence of (complete) absence.
A218: My question is not here
B219: Shoot me an email at <jose.jimenez@colorado.edu>

Sheet Master-Choir
A2: Estimation of COVID-19 aerosol transmission: master spreadsheet, adapt this one to your case - Default values are for Skagit Choir outbreak
A4: This is a general spreadsheet applicable to any situation, under the assumptions of this model - See notes specific to this case (if applicable) at the very bottom
A5: Important inputs as highlighted in orange - change these for your situation
A6: Other, more specialized inputs are highlighted in yellow - change only for more advanced applications
A7: Calculations are not highlighted - don't change these unless you are sure you know what you are doing
A8: Results are in blue -- these are the numbers of interest for most people
A10: Environmental Parameters
B12: Value | E12: Value in other units | G12: Source / Comments
A13: Length of room | B13: 30 | C13: ft | E13: =B13*0.305 -> 9.15 | F13: m | G13: Can enter as ft or as m (once entered as m, changing in ft does not work)
A14: Width of room | B14: 60 | C14: ft | D14: = | E14: 18.3 | F14: m | G14: Can enter as ft or as m (once entered as m, changing in ft does not work)
B15: =B14*B13 -> 1800 | C15: sq ft | E15: =E14*E13 -> 167.445 | F15: m2 | G15: Can overwrite the m2 one. If you want to enter sq ft, enter "=B15*0.305^2" in the m2 cell, where B15 is the cell w/ sq ft
A16: Height | B16: 15.86 | C16: ft | D16: = | E16: =B16*0.305 -> 4.8373 | F16: m | G16: Can enter as ft or as m (once entered as m, changing in ft does not work)
A17: Volume | E17: =E13*E14*E16 -> 809.9816985 | F17: m3 | G17: Volume, calculated. (Can also enter directly, then changing dimensions does not work)
A19: Pressure | B19: 0.95 | C19: atm | G19: Used only for CO2 calculation
A20: Temperature | B20: 20 | C20: C | G20: Use web converter if needed for F --> C. Used for CO2 calculation, eventually for survival rate of virus
A21: Relative Humidity | B21: 50 | C21: % | G21: Not yet used, but may eventually be used for survival rate of virus
A22: Background CO2 Outdoors | B22: 415 | C22: ppm | G22: See readme
A24: Duration of event | B24: 150 | C24: min | E24: =B24/60 -> 2.5 | F24: h | G24: Value for your situation of interest
A26: Number of repetitions of event | B26: 1 | C26: times | G26: For e.g. multiple class meetings, multiple commutes in public transportation etc.
A28: Ventilation w/ outside air | B28: 0.7 | C28: h-1 | G28: Value in h-1: Readme: Same as "air changes per hour". Value in L/s/per to compare to guidelines (e.g. ASHRAE 62.1)
A29: Decay rate of the virus | B29: 0.62 | C29: h-1 | G29: See Readme, can estimate for a given T, RH, UV from DHS estimator
A30: Deposition to surfaces | B30: 0.3 | C30: h-1 | G30: Buonnano et al. (2020), Miller et al. (2020). Could vary 0.24-1.5 h-1, depending on particle size range
A31: Additional control measures | B31: 0 | C31: h-1 | G31: E.g. filtering of recirc. air, HEPA air cleaner, UV disinfection, etc. See FAQs, Readme for calc for portable HEPA filter
A32: Total first order loss rate | B32: =sum(B28:B31) -> 1.62 | C32: h-1 | G32: Sum of all the first-order rates
A34: Ventilation rate per person | B34: =E17*(B28+B31)*1000/3600/(B38) -> 2.581908875 | C34: L/s/person | G34: This is the value of ventilation that really matters for disease transmission. Includes additional control measures
A36: Parameters related to people and activity in the room
A38: Total N people present | B38: 61 | G38: Value for your situation of interest
A39: Infective people | B39: 1 | C39: person | G39: Keep this at one unless you really want to study a different cases - see conditional and absolute results
A40: Fraction of population inmune | B40: 0 | G40: From seroprevalence reports, will depend on each location and time, see Readme
A41: Susceptible people | B41: =(B38-B39)*(1-B40) -> 60 | C41: people | G41: Value for your situation of interest
A43: Density (area / person) in room | B43: =E15/0.305^2/B38 -> 29.50819672 | C43: sq ft / person
A44: Density (people / area) in room | B44: =B38/E15 -> 0.364298725 | C44: persons / m2
A45: Density (volume / person) in room | B45: =E17/B38 -> 13.2783885 | C45: m3 / person
A47: Breathing rate (susceptibles) | B47: =0.026*60 -> 1.56 | C47: m3 / h | G47: See Readme sheet - varies a lot with activity level
A48: CO2 emission rate (1 person) | B48: 0.0091 | C48: L/s (@ 273 K and 1 atm) | G48: From tables in Readme page. This does not affect infection calculation, only use of CO2 as indicator, could ignore
A49: CO2 emission rate (all persons) | B49: =B48*B38*(1/B19)*(273.15+B20)/273.15 -> 0.6270992996 | C49: L/s (@ at actual P & T of room) | G49: Previous, multiplied by number of people, and applying ideal gas law to convert to ambient P & T
A51: Quanta exhalation rate (infected) | B51: 970 | C51: infectious doses (quanta) h-1 | G51: See Readme file. Depends strongly on activity, also like person.This is the most uncertain parameter, try different values.
A52: Exhalation mask efficiency | B52: 0 | G52: 0 if infective person is not wearing a mask. See Readme sheet
A53: Fraction of people w/ masks | B53: 0 | G53: Value for your situation. It is applied to everybody for both emission & inhalation. Modify formulas manually if needed
A54: Inhalation mask efficiency | B54: 0 | G54: See Readme sheet
A56: Parameters related to the COVID-19 disease
A58: Probability of being infective | B58: =7*2/129200 -> 0.0001083591331 | G58: Very important parameter, specific for each region and time period. For ABSOLUTE results (prob. given prevalence of disease in the population). See Readme sheet
A60: Hospitalization rate | B60: 0.2 | G60: From news reports. Varies strongly with age and risk factors
A61: Death rate | B61: 0.04 | G61: From news reports. Varies strongly with age and risk factors (1% typical - Higher for older / at risk people)
A63: CONDITIONAL result for ONE EVENT: we assume the number of infected people above, and get the results under that assumption
A64: More appropriate to simulate known outbreaks (e.g. choir, restaurant etc.), and an worst-case scenario for regular events (if one is unlucky enough to have infective people in attendance of a given event)
A66: Net emission rate | B66: =B51*(1-B52*B53)*B39 -> 970 | C66: infectious doses (quanta) h-1 | G66: Includes the number of infective people present
A67: Avg Quanta Concentration | B67: =B$66/B$32/E$17*(1-(1/B$32/E$24)*(1-exp(-B$32*E$24))) -> 0.5598865975 | C67: infectious doses (quanta) m-3 | G67: Analytical solution of the box model. Equation (4) in Miller et al. (2020)
A68: Quanta inhaled per person | B68: =B67*B$47*E$24*(1-B54*B53) -> 2.18355773 | C68: infectious doses (quanta)
A70: Conditional Results for ANY ONE PERSON & ONE EVENT (assuming number of infected above, typically 1)
A71: Probability of infection (1 person) | B71: =1-exp(-B68) -> 0.8873599261 | G71: Applying Wells-Riley infection model to the amount of infectious doses inhaled. Equation (1) in Miller et al. (2020)
A72: Prob. of hospitalization (1 person) | B72: =B71*B$60 -> 0.1774719852
A73: Prob. of death (1 person) | B73: =B71*B$61 -> 0.03549439704
A74: Ratio to risk of car travel death | B74: =B73/0.0000006 -> 59157.3284 | C74: times larger risk | G74: See FAQs for rough estimate of death traveling by car on a given day
A76: Conditional Results for ALL ATTENDEES & ONE EVENT (assuming number of infected above, typically 1)
A77: Number of COVID cases arising | B77: =B$41*B71 -> 53.24159556 | G77: Number of people. Multiplies probability of one person, times the number of susceptible people present
A78: N of hospitalizations arising | B78: =B77*B$60 -> 10.64831911 | G78: Number of people
A79: N of deaths arising | B79: =B77*B$61 -> 2.129663823 | G79: Number of people
A81: Results for CO2 as an indicator of risk (not needed for infection estimation, can ignore for simplicity)
A82: Avg CO2 mixing ratio | B82: =(B$49*3.6/B$28/E$17*(1-(1/B$28/E$24)*(1-exp(-B$28*E$24))))*1000000+B22 -> 2516.808915 | C82: ppm (including 400 ppm background) | G82: Analytical solution of the box model. Equation (4) in Miller et al. (2020). See FAQ page for differences w/ quanta calc
A83: Avg CO2 concentration | B83: =(B82-B22)*40.9/1000000*44*298/(273.15+B20)*B19/1 -> 3.652743571 | C83: g m-3 (excluding 400 ppm background) | G83: Conversion from Atmos. Chem. Cheat Sheet, plus ideal gas law
A84: Exhaled CO2 re-inhaled per person | B84: =B83*B47*E24 -> 14.24569993 | C84: grams (excluding 400 ppm background) | G84: This parameter is the most analogous to risk. See FAQ page for limitations
A85: Exhaled CO2 re-inhaled per person | B85: =(B82-B22)*E24 -> 5254.522287 | C85: ppm * h (maybe easier units, excludes 400 ppm background) | G85: This parameter is the most analogous to risk. See FAQ page for limitations
A86: Exhaled CO2 re-inhaled per person | B86: =B85/10000 -> 0.5254522287 | C86: %CO2 * h (same as above, different unit, for use next)
A87: Ratio of prob of infection to Ex_CO2 | B87: =B71/B86 -> 1.68875471 | C87: % chance of infection for 1 person per %CO2 * h inhaled
A88: CO2 to inhale 1 hr for 1% infect. | B88: =(B$82-B$22)*E$24/1*0.01/B$71+B$22 -> 474.2152309 | C88: ppm | G88: This is another metric of risk
A90: ABSOLUTE result for ONE EVENT: we use the prevalence of the disease in the community to estimate how many infected people may be present in our event, and calculate results based on that
A91: More appropriate for general risk estimation, e.g. in a college classroom, indoor gathering etc., where often infective people will not be present
A93: N of infective people present | B93: =(B39+B41)*B58 -> 0.006609907121 | G93: It has to be interpreted statistically. This would be the average over e.g. 100 repetitions of the event in a given location
A95: Absolute results for ANY ONE PERSON & ONE EVENT (using disease prevalence in community)
A96: Probability of infection (1 person) | B96: =1 - (1 - B71*B58)^B41 -> 0.005752878976
A97: Prob. of hospitalization (1 person) | B97: =B96*B$60 -> 0.001150575795
A98: Prob. of death (1 person) | B98: =B96*B$61 -> 0.000230115159
A99: Ratio to risk of car travel death | B99: =B98/0.0000006 -> 383.5252651 | C99: times larger risk | G99: See FAQs for rough estimate of death traveling by car on a given day
A101: Absolute results for ALL ATTENDEES & ONE EVENT (using disease prevalence in community)
A102: Number of COVID cases arising | B102: =(B$41-B$93)*B96 -> 0.3451347126 | G102: Number of people
A103: N of hospitalizations arising | B103: =B102*B$60 -> 0.06902694251 | G103: Number of people
A104: N of deaths arising | B104: =B102*B$61 -> 0.0138053885 | G104: Number of people
A106: CO2 to inhale 1 hr for 1% infect. | B106: =(B$82-B$22)*E$24/1*0.01/B$96+B$22 -> 9548.72645 | C106: ppm | G106: This is another metric of risk
A108: ABSOLUTE result for events that are REPEATED MULTIPLE TIMES (e.g. many class meetings during a semester, or a daily commute on public transportation) - Ignore for a single event
A110: Absolute results for ANY ONE PERSON & MULTIPLE EVENTS (using disease prevalence in community)
A111: Probability of infection (1 person) | B111: =1-(1-B96)^B26 -> 0.005752878976
A112: Prob. of hospitalization (1 person) | B112: =B111*B$60 -> 0.001150575795
A113: Prob. of death (1 person) | B113: =B111*B$61 -> 0.000230115159
A114: Ratio to risk of car travel death | B114: =B113/(0.0000006*B26) -> 383.5252651 | C114: times larger risk (than traveling same N of days) | G114: See FAQs for rough estimate of death traveling by car on a given day
A116: Absolute results for ALL ATTENDEES & MULTIPLE EVENTS (using disease prevalence in community)
A117: Number of COVID cases arising | B117: =(B$41-B$93)*B111 -> 0.3451347126 | G117: Number of people
A118: N of hospitalizations arising | B118: =B117*B$60 -> 0.06902694251 | G118: Number of people
A119: N of deaths arising | B119: =B117*B$61 -> 0.0138053885 | G119: Number of people
A121: Specific notes for the choir case
A122: Probability of death is set higher because of the higher age of choir members (75% of those ill were >= 65 yr old). Suggest changing to 1% for general applications
A123: Probability of being infective calculated from prevalence of the disease in the county at the time (7 cases * 2 to account for undetected cases / 129000 population of county), see Miller et al. 2020

Sheet Class
A2: Estimation of COVID-19 aerosol transmission: master spreadsheet, adapt this one to your case - Default values are for Skagit Choir outbreak
A4: This is a general spreadsheet applicable to any situation, under the assumptions of this model - See notes specific to this case (if applicable) at the very bottom
A5: Important inputs as highlighted in orange - change these for your situation
A6: Other, more specialized inputs are highlighted in yellow - change only for more advanced applications
A7: Calculations are not highlighted - don't change these unless you are sure you know what you are doing
A8: Results are in blue -- these are the numbers of interest for most people
A10: Environmental Parameters
B12: Value | E12: Value in other units | G12: Source / Comments
A13: Length of room | B13: 25 | C13: ft | E13: =B13*0.305 -> 7.625 | F13: m | G13: Can enter as ft or as m (once entered as m, changing in ft does not work)
A14: Width of room | B14: 20 | C14: ft | D14: = | E14: 6.1 | F14: m | G14: Can enter as ft or as m (once entered as m, changing in ft does not work)
B15: =B14*B13 -> 500 | C15: sq ft | E15: =E14*E13 -> 46.5125 | F15: m2 | G15: Can overwrite the m2 one. If you want to enter sq ft, enter "=B15*0.305^2" in the m2 cell, where B15 is the cell w/ sq ft
A16: Height | B16: 10 | C16: ft | D16: = | E16: =B16*0.305 -> 3.05 | F16: m | G16: Can enter as ft or as m (once entered as m, changing in ft does not work)
A17: Volume | E17: =E13*E14*E16 -> 141.863125 | F17: m3 | G17: Volume, calculated. (Can also enter directly, then changing dimensions does not work)
A19: Pressure | B19: 0.95 | C19: atm | G19: Used only for CO2 calculation
A20: Temperature | B20: 20 | C20: C | G20: Use web converter if needed for F --> C. Used for CO2 calculation, eventually for survival rate of virus
A21: Relative Humidity | B21: 50 | C21: % | G21: Not yet used, but may eventually be used for survival rate of virus
A22: Background CO2 Outdoors | B22: 415 | C22: ppm | G22: See readme
A24: Duration of event | B24: 50 | C24: min | E24: =B24/60 -> 0.8333333333 | F24: h | G24: Value for your situation of interest
A26: Number of repetitions of event | B26: 180 | C26: times | G26: For e.g. multiple class meetings, multiple commutes in public transportation etc.
A28: Ventilation w/ outside air | B28: 3 | C28: h-1 | G28: Value in h-1: Readme: Same as "air changes per hour". Value in L/s/per to compare to guidelines (e.g. ASHRAE 62.1)
A29: Decay rate of the virus | B29: 0.62 | C29: h-1 | G29: See Readme, can estimate for a given T, RH, UV from DHS estimator
A30: Deposition to surfaces | B30: 0.3 | C30: h-1 | G30: Buonnano et al. (2020), Miller et al. (2020). Could vary 0.24-1.5 h-1, depending on particle size range
A31: Additional control measures | B31: 0 | C31: h-1 | G31: E.g. filtering of recirc. air, HEPA air cleaner, UV disinfection, etc. See FAQs, Readme for calc for portable HEPA filter
A32: Total first order loss rate | B32: =sum(B28:B31) -> 3.92 | C32: h-1 | G32: Sum of all the first-order rates
A34: Ventilation rate per person | B34: =E17*(B28+B31)*1000/3600/(B38) -> 11.82192708 | C34: L/s/person | G34: This is the value of ventilation that really matters for disease transmission. Includes additional control measures
A36: Parameters related to people and activity in the room
A38: Total N people present | B38: 10 | G38: Value for your situation of interest
A39: Infective people | B39: 1 | C39: person | G39: Keep this at one unless you really want to study a different cases - see conditional and absolute results
A40: Fraction of population inmune | B40: 0 | G40: From seroprevalence reports, will depend on each location and time, see Readme
A41: Susceptible people | B41: =(B38-B39)*(1-B40) -> 9 | C41: people | G41: Value for your situation of interest
A43: Density (area / person) in room | B43: =E15/0.305^2/B38 -> 50 | C43: sq ft / person
A44: Density (people / area) in room | B44: =B38/E15 -> 0.2149959688 | C44: persons / m2
A45: Density (volume / person) in room | B45: =E17/B38 -> 14.1863125 | C45: m3 / person
A47: Breathing rate (susceptibles) | B47: =0.0086*60 -> 0.516 | C47: m3 / h | G47: See Readme sheet - varies a lot with activity level
A48: CO2 emission rate (1 person) | B48: 0.005 | C48: L/s (@ 273 K and 1 atm) | G48: From tables in Readme page. This does not affect infection calculation, only use of CO2 as indicator, could ignore
A49: CO2 emission rate (all persons) | B49: =B48*B38*(1/B19)*(273.15+B20)/273.15 -> 0.05648525487 | C49: L/s (@ at actual P & T of room) | G49: Previous, multiplied by number of people, and applying ideal gas law to convert to ambient P & T
A51: Quanta exhalation rate (infected) | B51: 25 | C51: infectious doses (quanta) h-1 | G51: See Readme file. Depends strongly on activity, also like person.This is the most uncertain parameter, try different values.
A52: Exhalation mask efficiency | B52: 0.5 | G52: 0 if infective person is not wearing a mask. See Readme sheet
A53: Fraction of people w/ masks | B53: 1 | G53: Value for your situation. It is applied to everybody for both emission & inhalation. Modify formulas manually if needed
A54: Inhalation mask efficiency | B54: 0.3 | G54: See Readme sheet
A56: Parameters related to the COVID-19 disease
A58: Probability of being infective | B58: 0.002 | G58: Very important parameter, specific for each region and time period. For ABSOLUTE results (prob. given prevalence of disease in the population). See Readme sheet
A60: Hospitalization rate | B60: 0.2 | G60: From news reports. Varies strongly with age and risk factors
A61: Death rate | B61: 0.01 | G61: From news reports. Varies strongly with age and risk factors (1% typical - Higher for older / at risk people)
A63: CONDITIONAL result for ONE EVENT: we assume the number of infected people above, and get the results under that assumption
A64: More appropriate to simulate known outbreaks (e.g. choir, restaurant etc.), and an worst-case scenario for regular events (if one is unlucky enough to have infective people in attendance of a given event)
A66: Net emission rate | B66: =B51*(1-B52*B53)*B39 -> 12.5 | C66: infectious doses (quanta) h-1 | G66: Includes the number of infective people present
A67: Avg Quanta Concentration | B67: =B$66/B$32/E$17*(1-(1/B$32/E$24)*(1-exp(-B$32*E$24))) -> 0.01585925735 | C67: infectious doses (quanta) m-3 | G67: Analytical solution of the box model. Equation (4) in Miller et al. (2020)
A68: Quanta inhaled per person | B68: =B67*B$47*E$24*(1-B54*B53) -> 0.004773636464 | C68: infectious doses (quanta)
A70: Conditional Results for ANY ONE PERSON & ONE EVENT (assuming number of infected above, typically 1)
A71: Probability of infection (1 person) | B71: =1-exp(-B68) -> 0.004762260769 | G71: Applying Wells-Riley infection model to the amount of infectious doses inhaled. Equation (1) in Miller et al. (2020)
A72: Prob. of hospitalization (1 person) | B72: =B71*B$60 -> 0.0009524521539
A73: Prob. of death (1 person) | B73: =B71*B$61 -> 4.762260769e-05
A74: Ratio to risk of car travel death | B74: =B73/0.0000006 -> 79.37101282 | C74: times larger risk | G74: See FAQs for rough estimate of death traveling by car on a given day
A76: Conditional Results for ALL ATTENDEES & ONE EVENT (assuming number of infected above, typically 1)
A77: Number of COVID cases arising | B77: =B$41*B71 -> 0.04286034692 | G77: Number of people. Multiplies probability of one person, times the number of susceptible people present
A78: N of hospitalizations arising | B78: =B77*B$60 -> 0.008572069385 | G78: Number of people
A79: N of deaths arising | B79: =B77*B$61 -> 0.0004286034692 | G79: Number of people
A81: Results for CO2 as an indicator of risk (not needed for infection estimation, can ignore for simplicity)
A82: Avg CO2 mixing ratio | B82: =(B$49*3.6/B$28/E$17*(1-(1/B$28/E$24)*(1-exp(-B$28*E$24))))*1000000+B22 -> 717.3685521 | C82: ppm (including 400 ppm background) | G82: Analytical solution of the box model. Equation (4) in Miller et al. (2020). See FAQ page for differences w/ quanta calc
A83: Avg CO2 concentration | B83: =(B82-B22)*40.9/1000000*44*298/(273.15+B20)*B19/1 -> 0.5254877249 | C83: g m-3 (excluding 400 ppm background) | G83: Conversion from Atmos. Chem. Cheat Sheet, plus ideal gas law
A84: Exhaled CO2 re-inhaled per person | B84: =B83*B47*E24 -> 0.2259597217 | C84: grams (excluding 400 ppm background) | G84: This parameter is the most analogous to risk. See FAQ page for limitations
A85: Exhaled CO2 re-inhaled per person | B85: =(B82-B22)*E24 -> 251.9737934 | C85: ppm * h (maybe easier units, excludes 400 ppm background) | G85: This parameter is the most analogous to risk. See FAQ page for limitations
A86: Exhaled CO2 re-inhaled per person | B86: =B85/10000 -> 0.02519737934 | C86: %CO2 * h (same as above, different unit, for use next)
A87: Ratio of prob of infection to Ex_CO2 | B87: =B71/B86 -> 0.1889982567 | C87: % chance of infection for 1 person per %CO2 * h inhaled
A88: CO2 to inhale 1 hr for 1% infect. | B88: =(B82-B22)*E24/1*0.01/B71+B22 -> 944.1054094 | C88: ppm | G88: This is another metric of risk
A90: ABSOLUTE result for ONE EVENT: we use the prevalence of the disease in the community to estimate how many infected people may be present in our event, and calculate results based on that
A91: More appropriate for general risk estimation, e.g. in a college classroom, indoor gathering etc., where often infective people will not be present
A93: N of infective people present | B93: =(B39+B41)*B58 -> 0.02 | G93: It has to be interpreted statistically. This would be the average over e.g. 100 repetitions of the event in a given location
A95: Absolute results for ANY ONE PERSON & ONE EVENT (using disease prevalence in community)
A96: Probability of infection (1 person) | B96: =1 - (1 - B71*B58)^B41 -> 8.571742813e-05 | G96: =1 - (1 - B71*B58)^B41 -> 8.571742813e-05
A97: Prob. of hospitalization (1 person) | B97: =B96*B$60 -> 1.714348563e-05
A98: Prob. of death (1 person) | B98: =B96*B$61 -> 8.571742813e-07
A99: Ratio to risk of car travel death | B99: =B98/0.0000006 -> 1.428623802 | C99: times larger risk | G99: See FAQs for rough estimate of death traveling by car on a given day
A101: Absolute results for ALL ATTENDEES & ONE EVENT (using disease prevalence in community)
A102: Number of COVID cases arising | B102: =(B$41-B$93)*B96 -> 0.0007697425046 | G102: Number of people
A103: N of hospitalizations arising | B103: =B102*B$60 -> 0.0001539485009 | G103: Number of people
A104: N of deaths arising | B104: =B102*B$61 -> 7.697425046e-06 | G104: Number of people
A106: CO2 to inhale 1 hr for 1% infect. | B106: =(B$82-B$22)*E$24/1*0.01/B$96+B$22 -> 29810.86487 | C106: ppm | G106: This is another metric of risk
A108: ABSOLUTE result for events that are REPEATED MULTIPLE TIMES (e.g. many class meetings during a semester, or a daily commute on public transportation) - Ignore for a single event
A110: Absolute results for ANY ONE PERSON & MULTIPLE EVENTS (using disease prevalence in community)
A111: Probability of infection (1 person) | B111: =1-(1-B96)^B26 -> 0.01531136893
A112: Prob. of hospitalization (1 person) | B112: =B111*B$60 -> 0.003062273786
A113: Prob. of death (1 person) | B113: =B111*B$61 -> 0.0001531136893
A114: Ratio to risk of car travel death | B114: =B113/(0.0000006*B26) -> 1.417719346 | C114: times larger risk (than traveling same N of days) | G114: See FAQs for rough estimate of death traveling by car on a given day
A116: Absolute results for ALL ATTENDEES & MULTIPLE EVENTS (using disease prevalence in community)
A117: Number of COVID cases arising | B117: =(B$41-B$93)*B111 -> 0.137496093 | G117: Number of people
A118: N of hospitalizations arising | B118: =B117*B$60 -> 0.0274992186 | G118: Number of people
A119: N of deaths arising | B119: =B117*B$61 -> 0.00137496093 | G119: Number of people
A121: Specific notes for this case
A122: Breathing rate
B123: Using 1/2 of sedentary and light activity, 16-21 yrs old as default. BR only matters for susceptible. To study transmission from students to teacher, need to increase this value accordingly.
B124: To study transmission to young children, BR also needs to be adjusted according to Readme table
A125: Quanta emission rate
B126: Current value is for a teacher talking a lot
B127: For teenagers, use values from readme, according to activity
B128: Small children are thought to be less contagious, and also breathe less air, so perhaps reduce the quanta emission rate by x5

Sheet Subway
A2: Estimation of COVID-19 aerosol transmission: case of a subway car (specific to a given city)
A4: This is a general spreadsheet applicable to any situation, under the assumptions of this model - See notes specific to this case (if applicable) at the very bottom
A5: Important inputs as highlighted in orange - change these for your situation
A6: Other, more specialized inputs are highlighted in yellow - change only for more advanced applications
A7: Calculations are not highlighted - don't change these unless you are sure you know what you are doing
A8: Results are in blue -- these are the numbers of interest for most people
A10: Environmental Parameters
B12: Value | E12: Value in other units | G12: Source / Comments
A13: Length of room | B13: 44 | C13: ft | E13: =B13*0.305 -> 13.42 | F13: m | G13: Can enter as ft or as m (once entered as m, changing in ft does not work)
A14: Width of room | B14: 10 | C14: ft | D14: = | E14: 3.05 | F14: m | G14: Can enter as ft or as m (once entered as m, changing in ft does not work)
B15: =B14*B13 -> 440 | C15: sq ft | E15: =E14*E13 -> 40.931 | F15: m2 | G15: Can overwrite the m2 one. If you want to enter sq ft, enter "=B15*0.305^2" in the m2 cell, where B15 is the cell w/ sq ft
A16: Height | B16: 12 | C16: ft | D16: = | E16: =B16*0.305 -> 3.66 | F16: m | G16: Can enter as ft or as m (once entered as m, changing in ft does not work)
A17: Volume | E17: =E13*E14*E16 -> 149.80746 | F17: m3 | G17: Volume, calculated. (Can also enter directly, then changing dimensions does not work)
A19: Pressure | B19: 0.95 | C19: atm | G19: Used only for CO2 calculation
A20: Temperature | B20: 20 | C20: C | G20: Use web converter if needed for F --> C. Used for CO2 calculation, eventually for survival rate of virus
A21: Relative Humidity | B21: 50 | C21: % | G21: Not yet used, but may eventually be used for survival rate of virus
A22: Background CO2 Outdoors | B22: 415 | C22: ppm | G22: See readme
A24: Duration of event | B24: 20 | C24: min | E24: =B24/60 -> 0.3333333333 | F24: h | G24: Value for your situation of interest
A26: Number of repetitions of event | B26: 60 | C26: times | G26: For e.g. multiple class meetings, multiple commutes in public transportation etc.
A28: Ventilation w/ outside air | B28: 5.7 | C28: h-1 | G28: Value in h-1: Readme: Same as "air changes per hour". Value in L/s/per to compare to guidelines (e.g. ASHRAE 62.1)
A29: Decay rate of the virus | B29: 0.62 | C29: h-1 | G29: See Readme, can estimate for a given T, RH, UV from DHS estimator
A30: Deposition to surfaces | B30: 0.3 | C30: h-1 | G30: Buonnano et al. (2020), Miller et al. (2020). Could vary 0.24-1.5 h-1, depending on particle size range
A31: Additional control measures | B31: 3.6 | C31: h-1 | G31: E.g. filtering of recirc. air, HEPA air cleaner, UV disinfection, etc. See FAQs, Readme for calc for portable HEPA filter
A32: Total first order loss rate | B32: =sum(B28:B31) -> 10.22 | C32: h-1 | G32: Sum of all the first-order rates
A34: Ventilation rate per person | B34: =E17*(B28+B31)*1000/3600/(B38) -> 11.05721729 | C34: L/s/person | G34: This is the value of ventilation that really matters for disease transmission. Includes additional control measures
A36: Parameters related to people and activity in the room
A38: Total N people present | B38: 35 | G38: Value for your situation of interest
A39: Infective people | B39: 1 | C39: person | G39: Keep this at one unless you really want to study a different cases - see conditional and absolute results
A40: Fraction of population inmune | B40: 0.15 | G40: From seroprevalence reports, will depend on each location and time, see Readme
A41: Susceptible people | B41: =(B38-B39)*(1-B40) -> 28.9 | C41: people | G41: Value for your situation of interest
A43: Density (area / person) in room | B43: =E15/0.305^2/B38 -> 12.57142857 | C43: sq ft / person
A44: Density (people / area) in room | B44: =B38/E15 -> 0.8550976033 | C44: persons / m2
A45: Density (volume / person) in room | B45: =E17/B38 -> 4.280213143 | C45: m3 / person
A47: Breathing rate (susceptibles) | B47: =0.007*60 -> 0.42 | C47: m3 / h | G47: See Readme sheet - varies a lot with activity level
A48: CO2 emission rate (1 person) | B48: 0.007 | C48: L/s (@ 273 K and 1 atm) | G48: From tables in Readme page. This does not affect infection calculation, only use of CO2 as indicator, could ignore
A49: CO2 emission rate (all persons) | B49: =B48*B38*(1/B19)*(273.15+B20)/273.15 -> 0.2767777489 | C49: L/s (@ at actual P & T of room) | G49: Previous, multiplied by number of people, and applying ideal gas law to convert to ambient P & T
A51: Quanta exhalation rate (infected) | B51: 25 | C51: infectious doses (quanta) h-1 | G51: See Readme file. Depends strongly on activity, also like person.This is the most uncertain parameter, try different values.
A52: Exhalation mask efficiency | B52: 0.5 | G52: 0 if infective person is not wearing a mask. See Readme sheet
A53: Fraction of people w/ masks | B53: 1 | G53: Value for your situation. It is applied to everybody for both emission & inhalation. Modify formulas manually if needed
A54: Inhalation mask efficiency | B54: 0.3 | G54: See Readme sheet
A56: Parameters related to the COVID-19 disease
A58: Probability of being infective | B58: 0.001 | G58: Very important parameter, specific for each region and time period. For ABSOLUTE results (prob. given prevalence of disease in the population). See Readme sheet
A60: Hospitalization rate | B60: 0.2 | G60: From news reports. Varies strongly with age and risk factors
A61: Death rate | B61: 0.01 | G61: From news reports. Varies strongly with age and risk factors (1% typical - Higher for older / at risk people)
A63: CONDITIONAL result for ONE EVENT: we assume the number of infected people above, and get the results under that assumption
A64: More appropriate to simulate known outbreaks (e.g. choir, restaurant etc.), and an worst-case scenario for regular events (if one is unlucky enough to have infective people in attendance of a given event)
A66: Net emission rate | B66: =B51*(1-B52*B53)*B39 -> 12.5 | C66: infectious doses (quanta) h-1 | G66: Includes the number of infective people present
A67: Avg Quanta Concentration | B67: =B$66/B$32/E$17*(1-(1/B$32/E$24)*(1-exp(-B$32*E$24))) -> 0.00584727474 | C67: infectious doses (quanta) m-3 | G67: Analytical solution of the box model. Equation (4) in Miller et al. (2020)
A68: Quanta inhaled per person | B68: =B67*B$47*E$24*(1-B54*B53) -> 0.0005730329245 | C68: infectious doses (quanta)
A70: Conditional Results for ANY ONE PERSON & ONE EVENT (assuming number of infected above, typically 1)
A71: Probability of infection (1 person) | B71: =1-exp(-B68) -> 0.0005728687725 | G71: Applying Wells-Riley infection model to the amount of infectious doses inhaled. Equation (1) in Miller et al. (2020)
A72: Prob. of hospitalization (1 person) | B72: =B71*B$60 -> 0.0001145737545
A73: Prob. of death (1 person) | B73: =B71*B$61 -> 5.728687725e-06
A74: Ratio to risk of car travel death | B74: =B73/0.0000006 -> 9.547812875 | C74: times larger risk | G74: See FAQs for rough estimate of death traveling by car on a given day
A76: Conditional Results for ALL ATTENDEES & ONE EVENT (assuming number of infected above, typically 1)
A77: Number of COVID cases arising | B77: =B$41*B71 -> 0.01655590753 | G77: Number of people. Multiplies probability of one person, times the number of susceptible people present
A78: N of hospitalizations arising | B78: =B77*B$60 -> 0.003311181505 | G78: Number of people
A79: N of deaths arising | B79: =B77*B$61 -> 0.0001655590753 | G79: Number of people
A81: Results for CO2 as an indicator of risk (not needed for infection estimation, can ignore for simplicity)
A82: Avg CO2 mixing ratio | B82: =(B$49*3.6/B$28/E$17*(1-(1/B$28/E$24)*(1-exp(-B$28*E$24))))*1000000+400 -> 1044.58859 | C82: ppm (including 400 ppm background) | G82: Analytical solution of the box model. Equation (4) in Miller et al. (2020). See FAQ page for differences w/ quanta calc
A83: Avg CO2 concentration | B83: =(B82-400)*40.9/1000000*44*298/(273.15+B20)*B19/1 -> 1.120233534 | C83: g m-3 (excluding 400 ppm background) | G83: Conversion from Atmos. Chem. Cheat Sheet, plus ideal gas law
A84: Exhaled CO2 re-inhaled per person | B84: =B83*B47*E24 -> 0.1568326947 | C84: grams (excluding 400 ppm background) | G84: This parameter is the most analogous to risk. See FAQ page for limitations
A85: Exhaled CO2 re-inhaled per person | B85: =(B82-400)*E24 -> 214.8628633 | C85: ppm * h (maybe easier units, excludes 400 ppm background) | G85: This parameter is the most analogous to risk. See FAQ page for limitations
A86: Exhaled CO2 re-inhaled per person | B86: =B85/10000 -> 0.02148628633 | C86: %CO2 * h (same as above, different unit, for use next)
A87: Ratio of prob of infection to Ex_CO2 | B87: =B71/B86 -> 0.02666206545 | C87: % chance of infection for 1 person per %CO2 * h inhaled
A88: CO2 to inhale 1 hr for 1% infect. | B88: =(B82-B21)*E24/1*0.01/B71+B21 -> 5837.181042 | C88: ppm | G88: This is another metric of risk
A90: ABSOLUTE result for ONE EVENT: we use the prevalence of the disease in the community to estimate how many infected people may be present in our event, and calculate results based on that
A91: More appropriate for general risk estimation, e.g. in a college classroom, indoor gathering etc., where often infective people will not be present
A93: N of infective people present | B93: =(B39+B41)*B58 -> 0.0299 | G93: It has to be interpreted statistically. This would be the average over e.g. 100 repetitions of the event in a given location
A95: Absolute results for ANY ONE PERSON & ONE EVENT (using disease prevalence in community)
A96: Probability of infection (1 person) | B96: =1 - (1 - B71*B58)^B41 -> 1.655577522e-05
A97: Prob. of hospitalization (1 person) | B97: =B96*B$60 -> 3.311155044e-06
A98: Prob. of death (1 person) | B98: =B96*B$61 -> 1.655577522e-07
A99: Ratio to risk of car travel death | B99: =B98/0.0000006 -> 0.275929587 | C99: times larger risk | G99: See FAQs for rough estimate of death traveling by car on a given day
A101: Absolute results for ALL ATTENDEES & ONE EVENT (using disease prevalence in community)
A102: Number of COVID cases arising | B102: =(B$41-B$93)*B96 -> 0.0004779668862 | G102: Number of people
A103: N of hospitalizations arising | B103: =B102*B$60 -> 9.559337724e-05 | G103: Number of people
A104: N of deaths arising | B104: =B102*B$61 -> 4.779668862e-06 | G104: Number of people
A106: CO2 to inhale 1 hr for 1% infect. | B106: =(B$82-B$22)*E$24/1*0.01/B$96+B$22 -> 127176.1214 | C106: ppm | G106: This is another metric of risk
A108: ABSOLUTE result for events that are REPEATED MULTIPLE TIMES (e.g. many class meetings during a semester, or a daily commute on public transportation) - Ignore for a single event
A110: Absolute results for ANY ONE PERSON & MULTIPLE EVENTS (using disease prevalence in community)
A111: Probability of infection (1 person) | B111: =1-(1-B96)^B26 -> 0.0009928615226
A112: Prob. of hospitalization (1 person) | B112: =B111*B$60 -> 0.0001985723045
A113: Prob. of death (1 person) | B113: =B111*B$61 -> 9.928615226e-06
A114: Ratio to risk of car travel death | B114: =B113/(0.0000006*B26) -> 0.2757948674 | C114: times larger risk (than traveling same N of days) | G114: See FAQs for rough estimate of death traveling by car on a given day
A116: Absolute results for ALL ATTENDEES & MULTIPLE EVENTS (using disease prevalence in community)
A117: Number of COVID cases arising | B117: =(B$41-B$93)*B111 -> 0.02866401144 | G117: Number of people
A118: N of hospitalizations arising | B118: =B117*B$60 -> 0.005732802289 | G118: Number of people
A119: N of deaths arising | B119: =B117*B$61 -> 0.0002866401144 | G119: Number of people
A121: Technical appendix: ventilation calculations for this case
A123: Volume | E123: =E17 -> 149.80746 | F123: m3
A125: probability of being infected | B125: 0.003
A126: passengers on car | B126: 35 | C126: people | G126: typical value
A127: Breathing rate | B127: 0.8 | C127: m3 / h | G127: Estimated from Miller et al. (2020), for someone occasionally talking
A129: Duration of subway ride | B129: 20 | C129: min | E129: =B129/60 -> 0.3333333333 | F129: h | G129: Typical value
A131: volumetric recirc air | B131: 900 | C131: cfm | E131: =B131*1.69 -> 1521 | F131: m3/h | G131: from info provided by subway operator
A132: =D121 ->  | B132: =B131*0.472 -> 424.8 | C132: L/s
A133: filter efficiency | B133: 0.35 | G133: assumption
A134: Volumetric recirc air particle free | B134: =B132*B133 -> 148.68 | C134: L/s | E134: =B134/($B$38) -> 4.248 | F134: L/s/P
A135: ventilation w/ filtered recirc air | B135: =(E131*B133)/E123 -> 3.553561351 | C135: h-1
A137: volumetric rate outside air | B137: 500 | C137: cfm | E137: =B137*1.69 -> 845 | F137: m3/h | G137: from info provided by subway operator
A138: = | B138: =B137*0.472 -> 236 | C138: =C132 -> L/s | E138: =B138/($B$38) -> 6.742857143 | F138: L/s/P
A139: Ventilation w/ outside air | B139: =E137/E123 -> 5.640573574 | C139: h-1 | G139: Same as "air changes per hour"
A141: total volumetric rate | B141: =B134+B138 -> 384.68 | C141: L/s | E141: =B141/($B$38) -> 10.99085714 | F141: L/s/person

Sheet Supermkt
A2: Estimation of COVID-19 aerosol transmission: Case of supermarket worker
A4: This is a general spreadsheet applicable to any situation, under the assumptions of this model - See notes specific to this case (if applicable) at the very bottom
A5: Important inputs as highlighted in orange - change these for your situation
A6: Other, more specialized inputs are highlighted in yellow - change only for more advanced applications
A7: Calculations are not highlighted - don't change these unless you are sure you know what you are doing
A8: Results are in blue -- these are the numbers of interest for most people
A10: Environmental Parameters
B12: Value | E12: Value in other units | G12: Source / Comments
A13: Length of room | B13: 80 | C13: ft | E13: =B13*0.305 -> 24.4 | F13: m | G13: Can enter as ft or as m (once entered as m, changing in ft does not work)
A14: Width of room | B14: 50 | C14: ft | D14: = | E14: 15.25 | F14: m | G14: Can enter as ft or as m (once entered as m, changing in ft does not work)
B15: =B14*B13 -> 4000 | C15: sq ft | E15: =E14*E13 -> 372.1 | F15: m2 | G15: Can overwrite the m2 one. If you want to enter sq ft, enter "=B15*0.305^2" in the m2 cell, where B15 is the cell w/ sq ft
A16: Height | B16: 18 | C16: ft | D16: = | E16: =B16*0.305 -> 5.49 | F16: m | G16: Can enter as ft or as m (once entered as m, changing in ft does not work)
A17: Volume | E17: =E13*E14*E16 -> 2042.829 | F17: m3 | G17: Volume, calculated. (Can also enter directly, then changing dimensions does not work)
A19: Pressure | B19: 0.95 | C19: atm | G19: Used only for CO2 calculation
A20: Temperature | B20: 20 | C20: C | G20: Use web converter if needed for F --> C. Used for CO2 calculation, eventually for survival rate of virus
A21: Relative Humidity | B21: 50 | C21: % | G21: Not yet used, but may eventually be used for survival rate of virus
A22: Background CO2 Outdoors | B22: 415 | C22: ppm | G22: See readme
A24: Duration of event | B24: =8*60 -> 480 | C24: min | E24: =B24/60 -> 8 | F24: h | G24: Value for your situation of interest
A26: Number of repetitions of event | B26: 21 | C26: times | G26: For e.g. multiple class meetings, multiple commutes in public transportation etc.
A28: Ventilation w/ outside air | B28: 3 | C28: h-1 | G28: Value in h-1: Readme: Same as "air changes per hour". Value in L/s/per to compare to guidelines (e.g. ASHRAE 62.1)
A29: Decay rate of the virus | B29: 0.62 | C29: h-1 | G29: See Readme, can estimate for a given T, RH, UV from DHS estimator
A30: Deposition to surfaces | B30: 0.3 | C30: h-1 | G30: Buonnano et al. (2020), Miller et al. (2020). Could vary 0.24-1.5 h-1, depending on particle size range
A31: Additional control measures | B31: 0 | C31: h-1 | G31: E.g. filtering of recirc. air, HEPA air cleaner, UV disinfection, etc. See FAQs, Readme for calc for portable HEPA filter
A32: Total first order loss rate | B32: =sum(B28:B31) -> 3.92 | C32: h-1 | G32: Sum of all the first-order rates
A34: Ventilation rate per person | B34: =E17*(B28+B31)*1000/3600/(B38) -> 22.6981 | C34: L/s/person | G34: This is the value of ventilation that really matters for disease transmission. Includes additional control measures
A36: Parameters related to people and activity in the room
A38: Total N people present | B38: 75 | G38: Value for your situation of interest
A39: Infective people | B39: 1 | C39: person | G39: Keep this at one unless you really want to study a different cases - see conditional and absolute results
A40: Fraction of population inmune | B40: 0.06 | G40: From seroprevalence reports, will depend on each location and time, see Readme
A41: Susceptible people | B41: =(B38-B39)*(1-B40) -> 69.56 | C41: people | G41: Value for your situation of interest
A43: Density (area / person) in room | B43: =E15/0.305^2/B38 -> 53.33333333 | C43: sq ft / person
A44: Density (people / area) in room | B44: =B38/E15 -> 0.2015587208 | C44: persons / m2
A45: Density (volume / person) in room | B45: =E17/B38 -> 27.23772 | C45: m3 / person
A47: Breathing rate (susceptibles) | B47: =0.012*60 -> 0.72 | C47: m3 / h | G47: See Readme sheet - varies a lot with activity level
A48: CO2 emission rate (1 person) | B48: 0.00675 | C48: L/s (@ 273 K and 1 atm) | G48: From tables in Readme page. This does not affect infection calculation, only use of CO2 as indicator, could ignore
A49: CO2 emission rate (all persons) | B49: =B48*B38*(1/B19)*(273.15+B20)/273.15 -> 0.5719132056 | C49: L/s (@ at actual P & T of room) | G49: Previous, multiplied by number of people, and applying ideal gas law to convert to ambient P & T
A51: Quanta exhalation rate (infected) | B51: 10 | C51: infectious doses (quanta) h-1 | G51: See Readme file. Depends strongly on activity, also like person.This is the most uncertain parameter, try different values.
A52: Exhalation mask efficiency | B52: 0.5 | G52: 0 if infective person is not wearing a mask. See Readme sheet
A53: Fraction of people w/ masks | B53: 1 | G53: Value for your situation. It is applied to everybody for both emission & inhalation. Modify formulas manually if needed
A54: Inhalation mask efficiency | B54: 0.3 | G54: See Readme sheet
A56: Parameters related to the COVID-19 disease
A58: Probability of being infective | B58: 0.001 | G58: Very important parameter, specific for each region and time period. For ABSOLUTE results (prob. given prevalence of disease in the population). See Readme sheet
A60: Hospitalization rate | B60: 0.2 | G60: From news reports. Varies strongly with age and risk factors
A61: Death rate | B61: 0.01 | G61: From news reports. Varies strongly with age and risk factors (1% typical - Higher for older / at risk people)
A63: CONDITIONAL result for ONE EVENT: we assume the number of infected people above, and get the results under that assumption
A64: More appropriate to simulate known outbreaks (e.g. choir, restaurant etc.), and an worst-case scenario for regular events (if one is unlucky enough to have infective people in attendance of a given event)
A66: Net emission rate | B66: =B51*(1-B52*B53)*B39 -> 5 | C66: infectious doses (quanta) h-1 | G66: Includes the number of infective people present
A67: Avg Quanta Concentration | B67: =B$66/B$32/E$17*(1-(1/B$32/E$24)*(1-exp(-B$32*E$24))) -> 0.0006044740147 | C67: infectious doses (quanta) m-3 | G67: Analytical solution of the box model. Equation (4) in Miller et al. (2020)
A68: Quanta inhaled per person | B68: =B67*B$47*E$24*(1-B54*B53) -> 0.002437239227 | C68: infectious doses (quanta)
A70: Conditional Results for ANY ONE PERSON & ONE EVENT (assuming number of infected above, typically 1)
A71: Probability of infection (1 person) | B71: =1-exp(-B68) -> 0.002434271571 | G71: Applying Wells-Riley infection model to the amount of infectious doses inhaled. Equation (1) in Miller et al. (2020)
A72: Prob. of hospitalization (1 person) | B72: =B71*B$60 -> 0.0004868543143
A73: Prob. of death (1 person) | B73: =B71*B$61 -> 2.434271571e-05
A74: Ratio to risk of car travel death | B74: =B73/0.0000006 -> 40.57119286 | C74: times larger risk | G74: See FAQs for rough estimate of death traveling by car on a given day
A76: Conditional Results for ALL ATTENDEES & ONE EVENT (assuming number of infected above, typically 1)
A77: Number of COVID cases arising | B77: =B$41*B71 -> 0.1693279305 | G77: Number of people. Multiplies probability of one person, times the number of susceptible people present
A78: N of hospitalizations arising | B78: =B77*B$60 -> 0.0338655861 | G78: Number of people
A79: N of deaths arising | B79: =B77*B$61 -> 0.001693279305 | G79: Number of people
A81: Results for CO2 as an indicator of risk (not needed for infection estimation, can ignore for simplicity)
A82: Avg CO2 mixing ratio | B82: =(B$49*3.6/B$28/E$17*(1-(1/B$28/E$24)*(1-exp(-B$28*E$24))))*1000000+400 -> 721.9555755 | C82: ppm (including 400 ppm background) | G82: Analytical solution of the box model. Equation (4) in Miller et al. (2020). See FAQ page for differences w/ quanta calc
A83: Avg CO2 concentration | B83: =(B82-400)*40.9/1000000*44*298/(273.15+B20)*B19/1 -> 0.5595281048 | C83: g m-3 (excluding 400 ppm background) | G83: Conversion from Atmos. Chem. Cheat Sheet, plus ideal gas law
A84: Exhaled CO2 re-inhaled per person | B84: =B83*B47*E24 -> 3.222881884 | C84: grams (excluding 400 ppm background) | G84: This parameter is the most analogous to risk. See FAQ page for limitations
A85: Exhaled CO2 re-inhaled per person | B85: =(B82-400)*E24 -> 2575.644604 | C85: ppm * h (maybe easier units, excludes 400 ppm background) | G85: This parameter is the most analogous to risk. See FAQ page for limitations
A86: Exhaled CO2 re-inhaled per person | B86: =B85/10000 -> 0.2575644604 | C86: %CO2 * h (same as above, different unit, for use next)
A87: Ratio of prob of infection to Ex_CO2 | B87: =B71/B86 -> 0.009451115916 | C87: % chance of infection for 1 person per %CO2 * h inhaled
A88: CO2 to inhale 1 hr for 1% infect. | B88: =(B82-B21)*E24/1*0.01/B71+B21 -> 22133.17538 | C88: ppm | G88: This is another metric of risk
A90: ABSOLUTE result for ONE EVENT: we use the prevalence of the disease in the community to estimate how many infected people may be present in our event, and calculate results based on that
A91: More appropriate for general risk estimation, e.g. in a college classroom, indoor gathering etc., where often infective people will not be present
A93: N of infective people present | B93: =(B39+B41)*B58 -> 0.07056 | G93: It has to be interpreted statistically. This would be the average over e.g. 100 repetitions of the event in a given location
A95: Absolute results for ANY ONE PERSON & ONE EVENT (using disease prevalence in community)
A96: Probability of infection (1 person) | B96: =1 - (1 - B71*B58)^B41 -> 0.0001693138014
A97: Prob. of hospitalization (1 person) | B97: =B96*B$60 -> 3.386276028e-05
A98: Prob. of death (1 person) | B98: =B96*B$61 -> 1.693138014e-06
A99: Ratio to risk of car travel death | B99: =B98/0.0000006 -> 2.82189669 | C99: times larger risk | G99: See FAQs for rough estimate of death traveling by car on a given day
A101: Absolute results for ALL ATTENDEES & ONE EVENT (using disease prevalence in community)
A102: Number of COVID cases arising | B102: =(B$41-B$93)*B96 -> 0.01176552124 | G102: Number of people
A103: N of hospitalizations arising | B103: =B102*B$60 -> 0.002353104249 | G103: Number of people
A104: N of deaths arising | B104: =B102*B$61 -> 0.0001176552124 | G104: Number of people
A106: CO2 to inhale 1 hr for 1% infect. | B106: =(B$82-B$22)*E$24/1*0.01/B$96+B$22 -> 145450.1114 | C106: ppm | G106: This is another metric of risk
A108: ABSOLUTE result for events that are REPEATED MULTIPLE TIMES (e.g. many class meetings during a semester, or a daily commute on public transportation) - Ignore for a single event
A110: Absolute results for ANY ONE PERSON & MULTIPLE EVENTS (using disease prevalence in community)
A111: Probability of infection (1 person) | B111: =1-(1-B96)^B26 -> 0.003549576176
A112: Prob. of hospitalization (1 person) | B112: =B111*B$60 -> 0.0007099152351
A113: Prob. of death (1 person) | B113: =B111*B$61 -> 3.549576176e-05
A114: Ratio to risk of car travel death | B114: =B113/(0.0000006*B26) -> 2.817123949 | C114: times larger risk (than traveling same N of days) | G114: See FAQs for rough estimate of death traveling by car on a given day
A116: Absolute results for ALL ATTENDEES & MULTIPLE EVENTS (using disease prevalence in community)
A117: Number of COVID cases arising | B117: =(B$41-B$93)*B111 -> 0.2466580607 | G117: Number of people
A118: N of hospitalizations arising | B118: =B117*B$60 -> 0.04933161214 | G118: Number of people
A119: N of deaths arising | B119: =B117*B$61 -> 0.002466580607 | G119: Number of people
A121: Specific notes for the choir case
A122: Based on a specific supermarket in Boulder, Colorado.
A123: Horizontal dimensions estimated from Google Maps (using scale), height using pictures from Google Street View (using people present for scale)
A124: Ventilation rate estimated from ASHRAE standard in Readme page
A125: Occupancy typical daily average, based on my visits to the space pre-pandemic (may be lower now.
A126: Other parameters estimated per Readme for this situation
A127: This is for a supermarket worker. For a customer, change the time spent in the story to e.g. 1 hr, 4 times a week to simulate 1 month

Sheet Stadium
A2: Estimation of COVID-19 aerosol transmission: Case for Soccer Match (ONLY through air beyond close proximity, so will underestimate a lot)
A4: This is a general spreadsheet applicable to any situation, under the assumptions of this model - See notes specific to this case (if applicable) at the very bottom
A5: Important inputs as highlighted in orange - change these for your situation
A6: Other, more specialized inputs are highlighted in yellow - change only for more advanced applications
A7: Calculations are not highlighted - don't change these unless you are sure you know what you are doing
A8: Results are in blue -- these are the numbers of interest for most people
A10: Environmental Parameters
B12: Value | E12: Value in other units | G12: Source / Comments
A13: Length of room | B13: 600 | C13: ft | E13: =B13*0.305 -> 183 | F13: m | G13: Can enter as ft or as m (once entered as m, changing in ft does not work)
A14: Width of room | B14: 300 | C14: ft | D14: = | E14: 91.5 | F14: m | G14: Can enter as ft or as m (once entered as m, changing in ft does not work)
B15: =B14*B13 -> 180000 | C15: sq ft | E15: =E14*E13 -> 16744.5 | F15: m2 | G15: Can overwrite the m2 one. If you want to enter sq ft, enter "=B15*0.305^2" in the m2 cell, where B15 is the cell w/ sq ft
A16: Height | B16: =15/0.3 -> 50 | C16: ft | D16: = | E16: =B16*0.305 -> 15.25 | F16: m | G16: Can enter as ft or as m (once entered as m, changing in ft does not work)
A17: Volume | E17: =E13*E14*E16 -> 255353.625 | F17: m3 | G17: Volume, calculated. (Can also enter directly, then changing dimensions does not work)
A19: Pressure | B19: 0.95 | C19: atm | G19: Used only for CO2 calculation
A20: Temperature | B20: 20 | C20: C | G20: Use web converter if needed for F --> C. Used for CO2 calculation, eventually for survival rate of virus
A21: Relative Humidity | B21: 50 | C21: % | G21: Not yet used, but may eventually be used for survival rate of virus
A22: Background CO2 Outdoors | B22: 415 | C22: ppm | G22: See readme
A24: Duration of event | B24: 90 | C24: min | E24: =B24/60 -> 1.5 | F24: h | G24: Value for your situation of interest
A26: Number of repetitions of event | B26: 1 | C26: times | G26: For e.g. multiple class meetings, multiple commutes in public transportation etc.
A28: Ventilation w/ outside air | B28: 40 | C28: h-1 | G28: Value in h-1: Readme: Same as "air changes per hour". Value in L/s/per to compare to guidelines (e.g. ASHRAE 62.1)
A29: Decay rate of the virus | B29: 0.62 | C29: h-1 | G29: See Readme, can estimate for a given T, RH, UV from DHS estimator
A30: Deposition to surfaces | B30: 0.3 | C30: h-1 | G30: Buonnano et al. (2020), Miller et al. (2020). Could vary 0.24-1.5 h-1, depending on particle size range
A31: Additional control measures | B31: 0 | C31: h-1 | G31: E.g. filtering of recirc. air, HEPA air cleaner, UV disinfection, etc. See FAQs, Readme for calc for portable HEPA filter
A32: Total first order loss rate | B32: =sum(B28:B31) -> 40.92 | C32: h-1 | G32: Sum of all the first-order rates
A34: Ventilation rate per person | B34: =E17*(B28+B31)*1000/3600/(B38) -> 91.52459677 | C34: L/s/person | G34: This is the value of ventilation that really matters for disease transmission. Includes additional control measures
A36: Parameters related to people and activity in the room
A38: Total N people present | B38: 31000 | G38: Value for your situation of interest
A39: Infective people | B39: 1 | C39: person | G39: Keep this at one unless you really want to study a different cases - see conditional and absolute results
A40: Fraction of population inmune | B40: 0 | G40: From seroprevalence reports, will depend on each location and time, see Readme
A41: Susceptible people | B41: =(B38-B39)*(1-B40) -> 30999 | C41: people | G41: Value for your situation of interest
A43: Density (area / person) in room | B43: =E15/0.305^2/B38 -> 5.806451613 | C43: sq ft / person
A44: Density (people / area) in room | B44: =B38/E15 -> 1.851354176 | C44: persons / m2
A45: Density (volume / person) in room | B45: =E17/B38 -> 8.23721371 | C45: m3 / person
A47: Breathing rate (susceptibles) | B47: =0.012*60 -> 0.72 | C47: m3 / h | G47: See Readme sheet - varies a lot with activity level
A48: CO2 emission rate (1 person) | B48: 0.0061 | C48: L/s (@ 273 K and 1 atm) | G48: From tables in Readme page. This does not affect infection calculation, only use of CO2 as indicator, could ignore
A49: CO2 emission rate (all persons) | B49: =B48*B38*(1/B19)*(273.15+B20)/273.15 -> 213.6272339 | C49: L/s (@ at actual P & T of room) | G49: Previous, multiplied by number of people, and applying ideal gas law to convert to ambient P & T
A51: Quanta exhalation rate (infected) | B51: 50 | C51: infectious doses (quanta) h-1 | G51: See Readme file. Depends strongly on activity, also like person.This is the most uncertain parameter, try different values.
A52: Exhalation mask efficiency | B52: 0 | G52: 0 if infective person is not wearing a mask. See Readme sheet
A53: Fraction of people w/ masks | B53: 0 | G53: Value for your situation. It is applied to everybody for both emission & inhalation. Modify formulas manually if needed
A54: Inhalation mask efficiency | B54: 0 | G54: See Readme sheet
A56: Parameters related to the COVID-19 disease
A58: Probability of being infective | B58: 0.001 | G58: Very important parameter, specific for each region and time period. For ABSOLUTE results (prob. given prevalence of disease in the population). See Readme sheet
A60: Hospitalization rate | B60: 0.2 | G60: From news reports. Varies strongly with age and risk factors
A61: Death rate | B61: 0.01 | G61: From news reports. Varies strongly with age and risk factors (1% typical - Higher for older / at risk people)
A63: CONDITIONAL result for ONE EVENT: we assume the number of infected people above, and get the results under that assumption
A64: More appropriate to simulate known outbreaks (e.g. choir, restaurant etc.), and an worst-case scenario for regular events (if one is unlucky enough to have infective people in attendance of a given event)
A66: Net emission rate | B66: =B51*(1-B52*B53)*B39 -> 50 | C66: infectious doses (quanta) h-1 | G66: Includes the number of infective people present
A67: Avg Quanta Concentration | B67: =B$66/B$32/E$17*(1-(1/B$32/E$24)*(1-exp(-B$32*E$24))) -> 4.707155836e-06 | C67: infectious doses (quanta) m-3 | G67: Analytical solution of the box model. Equation (4) in Miller et al. (2020)
A68: Quanta inhaled per person | B68: =B67*B$47*E$24*(1-B54*B53) -> 5.083728303e-06 | C68: infectious doses (quanta)
A70: Conditional Results for ANY ONE PERSON & ONE EVENT (assuming number of infected above, typically 1)
A71: Probability of infection (1 person) | B71: =1-exp(-B68) -> 5.083715381e-06 | G71: Applying Wells-Riley infection model to the amount of infectious doses inhaled. Equation (1) in Miller et al. (2020)
A72: Prob. of hospitalization (1 person) | B72: =B71*B$60 -> 1.016743076e-06
A73: Prob. of death (1 person) | B73: =B71*B$61 -> 5.083715381e-08
A74: Ratio to risk of car travel death | B74: =B73/0.0000006 -> 0.08472858969 | C74: times larger risk | G74: See FAQs for rough estimate of death traveling by car on a given day
A76: Conditional Results for ALL ATTENDEES & ONE EVENT (assuming number of infected above, typically 1)
A77: Number of COVID cases arising | B77: =B$41*B71 -> 0.1575900931 | G77: Number of people. Multiplies probability of one person, times the number of susceptible people present
A78: N of hospitalizations arising | B78: =B77*B$60 -> 0.03151801862 | G78: Number of people
A79: N of deaths arising | B79: =B77*B$61 -> 0.001575900931 | G79: Number of people
A81: Results for CO2 as an indicator of risk (not needed for infection estimation, can ignore for simplicity)
A82: Avg CO2 mixing ratio | B82: =(B$49*3.6/B$28/E$17*(1-(1/B$28/E$24)*(1-exp(-B$28*E$24))))*1000000+400 -> 474.0385424 | C82: ppm (including 400 ppm background) | G82: Analytical solution of the box model. Equation (4) in Miller et al. (2020). See FAQ page for differences w/ quanta calc
A83: Avg CO2 concentration | B83: =(B82-400)*40.9/1000000*44*298/(273.15+B20)*B19/1 -> 0.1286719302 | C83: g m-3 (excluding 400 ppm background) | G83: Conversion from Atmos. Chem. Cheat Sheet, plus ideal gas law
A84: Exhaled CO2 re-inhaled per person | B84: =B83*B47*E24 -> 0.1389656846 | C84: grams (excluding 400 ppm background) | G84: This parameter is the most analogous to risk. See FAQ page for limitations
A85: Exhaled CO2 re-inhaled per person | B85: =(B82-400)*E24 -> 111.0578137 | C85: ppm * h (maybe easier units, excludes 400 ppm background) | G85: This parameter is the most analogous to risk. See FAQ page for limitations
A86: Exhaled CO2 re-inhaled per person | B86: =B85/10000 -> 0.01110578137 | C86: %CO2 * h (same as above, different unit, for use next)
A87: Ratio of prob of infection to Ex_CO2 | B87: =B71/B86 -> 0.0004577539584 | C87: % chance of infection for 1 person per %CO2 * h inhaled
A88: CO2 to inhale 1 hr for 1% infect. | B88: =(B82-B21)*E24/1*0.01/B71+B21 -> 1251217.239 | C88: ppm | G88: This is another metric of risk
A90: ABSOLUTE result for ONE EVENT: we use the prevalence of the disease in the community to estimate how many infected people may be present in our event, and calculate results based on that
A91: More appropriate for general risk estimation, e.g. in a college classroom, indoor gathering etc., where often infective people will not be present
A93: N of infective people present | B93: =(B39+B41)*B58 -> 31 | G93: It has to be interpreted statistically. This would be the average over e.g. 100 repetitions of the event in a given location
A95: Absolute results for ANY ONE PERSON & ONE EVENT (using disease prevalence in community)
A96: Probability of infection (1 person) | B96: =1 - (1 - B71*B58)^B41 -> 0.0001575776755
A97: Prob. of hospitalization (1 person) | B97: =B96*B$60 -> 3.15155351e-05
A98: Prob. of death (1 person) | B98: =B96*B$61 -> 1.575776755e-06
A99: Ratio to risk of car travel death | B99: =B98/0.0000006 -> 2.626294591 | C99: times larger risk | G99: See FAQs for rough estimate of death traveling by car on a given day
A101: Absolute results for ALL ATTENDEES & ONE EVENT (using disease prevalence in community)
A102: Number of COVID cases arising | B102: =(B$41-B$93)*B96 -> 4.879865454 | G102: Number of people
A103: N of hospitalizations arising | B103: =B102*B$60 -> 0.9759730909 | G103: Number of people
A104: N of deaths arising | B104: =B102*B$61 -> 0.04879865454 | G104: Number of people
A106: CO2 to inhale 1 hr for 1% infect. | B106: =(B$82-B$22)*E$24/1*0.01/B$96+B$22 -> 6034.946696 | C106: ppm | G106: This is another metric of risk
A108: ABSOLUTE result for events that are REPEATED MULTIPLE TIMES (e.g. many class meetings during a semester, or a daily commute on public transportation) - Ignore for a single event
A110: Absolute results for ANY ONE PERSON & MULTIPLE EVENTS (using disease prevalence in community)
A111: Probability of infection (1 person) | B111: =1-(1-B96)^B26 -> 0.0001575776755
A112: Prob. of hospitalization (1 person) | B112: =B111*B$60 -> 3.15155351e-05
A113: Prob. of death (1 person) | B113: =B111*B$61 -> 1.575776755e-06
A114: Ratio to risk of car travel death | B114: =B113/(0.0000006*B26) -> 2.626294591 | C114: times larger risk (than traveling same N of days) | G114: See FAQs for rough estimate of death traveling by car on a given day
A116: Absolute results for ALL ATTENDEES & MULTIPLE EVENTS (using disease prevalence in community)
A117: Number of COVID cases arising | B117: =(B$41-B$93)*B111 -> 4.879865454 | G117: Number of people
A118: N of hospitalizations arising | B118: =B117*B$60 -> 0.9759730909 | G118: Number of people
A119: N of deaths arising | B119: =B117*B$61 -> 0.04879865454 | G119: Number of people
A121: Specific notes for the choir case
A122: This is a case for a soccer stadium, as discussed in this tweet: https://twitter.com/jljcolorado/status/1289254898131820550
A123: And based on this paper: https://www.sciencedirect.com/science/article/pii/S1352231013004494
A124: Note that for the infection risk, the calculator only estimates the infection risk through the air beyond close proximity. Since social distance would not be maintained in such an event, this will be a large underestimate

Sheet Class_Old
A2: Estimation of COVID-19 aerosol transmission in a university classroom
A4: Input Parameters
B5: Value | E5: Value in other units | G5: Source
A6: Surface area | B6: 500 | C6: sq ft | D6: = | E6: =B6*0.305^2 -> 46.5125 | F6: m2 | G6: Typical value
A7: Height | B7: 10 | C7: ft | D7: = | E7: =B7*0.305 -> 3.05 | F7: m | G7: Typical value
A8: Volume | E8: =E7*E6 -> 141.863125 | F8: m3
A10: Faculty / instructors | B10: 1 | C10: person | G10: Typical value - Assumed constant
A11: Surface area per student | B11: 65 | C11: sq ft | D11: = | E11: =B11*0.305^2 -> 6.046625 | F11: m2 | G11: CU-Boulder: 60-120 sq ft / person. UNC = 36 sq ft / person. See Readme
A12: Students | B12: =floor(B6/B11, 1) -> 7 | C12: people | G12: You can change this number directly, then the previous input of area per student is not used
A13: Breathing rate (instructor) | B13: 1.1 | C13: m3/h | G13: Estimated from Miller et al. (2020), for someone talking a lot
A14: Breathing rate (students) | B14: 0.8 | C14: m3 / h | G14: Estimated from Miller et al. (2020), for someone occasionally talking
A16: Duration of class period | B16: 50 | C16: min | E16: =B16/60 -> 0.8333333333 | F16: h | G16: Typical value
A18: Ventilation w/ outside air | B18: 3 | C18: h-1 | E18: =B18*E8*1000/3600/(B12+B10) -> 14.77740885 | F18: L/s/per | G18: First value is the same as "air changes per hour". Second is used in most guidelines now
A19: Decay rate of the virus | B19: 0.32 | C19: h-1 | G19: Average of literature values (0 and 0.62), Miller et al. (2020)
A20: Deposition to surfaces | B20: 0.3 | C20: h-1 | G20: Buonnano et al. (2020), Miller et al. (2020). Could vary 0.24-1.5 h-1, depending on particle size range
A21: Additional control measures | B21: 0 | C21: h-1 | G21: E.g. UV disinfection, personal HEPA air cleaner, etc.
A22: Total first order loss rate | B22: =sum(B18:B21) -> 3.62 | C22: h-1
A24: CONDITIONAL RESULT: Case in which instructor is infected, students are susceptible
A26: Quanta emission rate (instructor) | B26: 135 | C26: q h-1 | G26: Estimated from Miller (2020) and Buonnano et al. (2020a, 2020b). See Readme sheet
A27: Mask efficiency for emission | B27: 0.5 | G27: See readme sheet
A28: Net emission rate | B28: =B26*(1-B27)*B10 -> 67.5 | C28: q h-1
A30: Avg Quanta Concentration | B30: =B28/B$22/E$8*(1-(1/B$22/E$16)*(1-exp(-B$22*E$16))) -> 0.09000177234 | C30: q m-3 | G30: Equation (4) in Miller et al. (2020)
A32: Mask efficiency for intake | B32: 0.3 | G32: See readme sheet
A33: Quanta inhaled per student | B33: =B30*B$14*E$16*(1-B32) -> 0.04200082709 | C33: quanta
A34: Probability of infection (1 student) | B34: =1-exp(-B33) -> 0.0411310125 | G34: Equation (1) in Miller et al. (2020). This assumes instructor was infected. See "Campus" sheet for more general case
A35: Number of COVID cases arising | B35: =B$12*B34 -> 0.2879170875
A37: CONDITIONAL RESULT: Case in which student is infected, other students and instructor are susceptible
A39: Quanta emission rate (student) | B39: 16 | C39: h-1 | G39: =G26 -> Estimated from Miller (2020) and Buonnano et al. (2020a, 2020b). See Readme sheet
A40: Mask efficiency for emission | B40: 0.5 | G40: See readme sheet / Assume potentially different masks types for students and instructor
A41: Net emission rate | B41: =B39*(1-B40) -> 8 | C41: q h-1
A43: Avg Quanta Concentration | B43: =B41/B$22/E$8*(1-(1/B$22/E$16)*(1-exp(-B$22*E$16))) -> 0.01066687672 | C43: q m-3 | G43: Equation (4) in Miller et al. (2020)
A45: Mask efficiency for intake | B45: 0.3 | G45: =G32 -> See readme sheet
A46: Quanta inhaled per person | B46: =B43*B$13*E$16*(1-B45) -> 0.00684457923 | C46: quanta | G46: Using instructor breathing rate
A47: Probability of infection (1 person) | B47: =1-exp(-B46) -> 0.006821208449 | G47: Equation (1) in Miller et al. (2020). This assumes 1 student was infected. See "Campus" sheet for more general case
A48: Number of COVID cases arising | B48: =B$12*B47 -> 0.04774845914 | G48: This is for one lecture only, of the length specified above. For a whole semester, see "Campus" sheet

Sheet Outdoors_Old
A2: Estimation of COVID-19 aerosol transmission outdoors (Skagit Choir Repeat) during daytime, relatively crowded conditions (1.3 persons / m2) - S
A4: Input Parameters
B5: Value | E5: Value in other units | G5: Source
A6: Surface area | B6: =30*60 -> 1800 | C6: sq ft | D6: = | E6: =B6*0.305^2 -> 167.445 | F6: m2 | G6: Just assuming a value, similar to choir outbreak case
A7: Height | B7: 15.86 | C7: ft | D7: = | E7: =B7*0.305 -> 4.8373 | F7: m | G7: Assuming that air within this height can get mixed to respiratory height
A8: Volume | E8: =E6*E7 -> 809.9816985 | F8: m3
A10: Infected people | B10: 1 | C10: person | G10: Just assuming a value, similar to choir outbreak case
A11: Susceptible people | B11: 60 | C11: people | G11: Just assuming a value, similar to choir outbreak case
A12: Breathing rate (index case) | B12: 1.1 | C12: m3 / h | G12: Estimated from Miller et al. (2020), for someone singing
A13: Breathing rate (susceptible) | B13: 1.1 | C13: m3 / h | G13: Estimated from Miller et al. (2020), for someone singing
A15: Duration of event | B15: 150 | C15: min | E15: =B15/60 -> 2.5 | F15: h | G15: Just assuming a value, similar to choir outbreak case
A17: Wind speed | B17: 5 | C17: km/ h | E17: =B17*1000/3600 -> 1.388888889 | F17: m/s | G17: 1/2 of low end of average daytime US wind speed per https://sciencing.com/average-daily-wind-speed-24011.html
A19: Ventilation w/ outside air | B19: =E17/ sqrt(E6) *3600 -> 386.3971482 | C19: h-1 | G19: Same as "air changes per hour", calculated approximately from the wind speed
A20: Decay rate of the virus | B20: 9.3 | C20: h-1 | G20: Estimated (UV index 5, default T & RH) from https://www.dhs.gov/science-and-technology/sars-airborne-calculator
A21: Deposition to surfaces | B21: 0.3 | C21: h-1 | G21: Buonnano et al. (2020), Miller et al. (2020). Could vary 0.24-1.5 h-1, depending on particle size range
A22: Additional control measures | B22: 0 | C22: h-1 | G22: E.g. UV disinfection, personal HEPA air cleaner, etc.
A23: Total first order loss rate | B23: =sum(B19:B22) -> 395.9971482 | C23: h-1
A25: CONDITIONAL RESULT: Case with one person infected, everyone else is susceptible
A27: Quanta emission rate (infected) | B27: 970 | C27: q h-1 | G27: Just assuming a value, similar to choir outbreak case. This should be an upper limit for COVID-19. See Readme
A28: Mass efficiency for emission | B28: 0 | G28: No masks were worn, for comparison with choir outbreak
A29: Net emission rate | B29: =B27*(1-B28)*B10 -> 970 | C29: q h-1 | G29: Includes the number of infected people above
A31: Avg Quanta Concentration | B31: =B$29/B$23/E$8*(1-(1/B$23/E$15)*(1-exp(-B$23*E$15))) -> 0.003021103219 | C31: q m-3 | G31: Equation (4) in Miller et al. (2020)
A33: Quanta inhaled per person | B33: =B31*B$13*E$15 -> 0.008308033853 | C33: quanta
A34: Probability of infection (1 person) | B34: =1-exp(-B33) -> 0.008273617516 | G34: Equation (1) in Miller et al. (2020)
A35: Number of COVID cases arising | B35: =B$11*B34 -> 0.496417051

Sheet Campus_Old
A2: Estimation of COVID-19 aerosol transmission in a university campus
A4: Input Parameters
F5: Comments
A6: Probability of a student being infected | B6: 0.003 | F6: See readme sheet
A7: Probability of an instructor being infected | B7: 0.003 | F7: See readme sheet
A9: Student population of campus | B9: 33000 | C9: people | F9: Estimated for large Western US university
A10: Instructors w/ in-person teaching | B10: 2000 | C10: people | F10: Estimated for large Western US university, including TAs
A11: Indoor classroom periods per student | B11: 2 | C11: per day | F11: Estimated for large Western US university. Duration set in "Classroom" sheet
A12: Indoor classroom periods per instructor | B12: 1 | C12: per day | F12: Estimated for large Western US university. Duration set in "Classroom" sheet
A13: Duration of semester | B13: 13 | C13: weeks | D13: =B13*5 -> 65 | E13: days
A14: Total class hours for student per semester | B14: =Class_Old!B16/60*B11*B13*5 -> 108.3333333 | C14: h / semester
A15: Total class hours for instructor per semester | B15: =Class_Old!B16/60*B12*B13*5 -> 54.16666667 | C15: h / semester
A17: Probability of hospitalization for students | B17: 0.05 | F17: Estimated from news reports, varies with time and location
A18: Probability of hospitalization for faculty | B18: 0.2 | F18: Estimated from news reports, varies with time and location
A19: Probability of death for students | B19: 0.0005 | F19: Estimated from news reports, varies with time and location
A20: Probability of death for faculty | B20: 0.005 | F20: Estimated from news reports, varies with time and location
A22: ABSOLUTE Results: infections, hospitalizations, and deaths
A24: Student cases | B24: =B9*B11*D13*(Class_Old!B34*B7+Class_Old!B47*B6*Class_Old!B12) -> 1143.8788 | C24: cases
A25: Instructor cases | B25: =B10*B12*D13*(Class_Old!B47*B6) -> 2.660271295 | C25: cases
A27: Student hospitalizations | B27: =B24*B17 -> 57.19394 | C27: hospitalizations
A28: Instructor hospitalizations | B28: 0.532054259 | C28: hospitalizations
A30: Student deaths | B30: =B24*B19 -> 0.5719394 | C30: deaths
A31: Instructor deaths | B31: =B20*B25 -> 0.01330135647 | C31: deaths

Sheet Bus_Old
A2: Estimation of COVID-19 aerosol transmission in an urban bus
A4: Input Parameters
B5: Value | E5: Value in other units | G5: Source
A6: Surface area | B6: =2.4*11.9/0.305^2 -> 307.0142435 | C6: sq ft | D6: = | E6: =B6*0.305^2 -> 28.56 | F6: m2 | G6: Provided by bus operator
A7: Height | B7: =2.4/0.305 -> 7.868852459 | C7: ft | D7: = | E7: =B7*0.305 -> 2.4 | F7: m | G7: Provided by bus operator
A8: Volume | E8: =E7*E6 -> 68.544 | F8: m3
A10: Passengers | B10: 40 | C10: people | G10: Capacity is 50 people, provided by bus operator. Assuming 80% full for this estimation
A11: Breathing rate | B11: 0.8 | C11: m3 / h | G11: Estimated from Miller et al. (2020), for someone occasionally talking
A13: Duration of trip | B13: 45 | C13: min | E13: =B13/60 -> 0.75 | F13: h | G13: Typical value. People may come in and out for urban buses, that mixes people and will increase transmission more
A15: Ventilation w/ outside air | B15: 3 | C15: h-1 | E15: =B15*E8*1000/3600/B10 -> 1.428 | F15: L/s/per | G15: First value is the same as "air changes per hour". Second is used in most guidelines now
A16: Decay rate of the virus | B16: 0.32 | C16: h-1 | G16: Average of literature values (0 and 0.62), Miller et al. (2020)
A17: Deposition to surfaces | B17: 0.3 | C17: h-1 | G17: Buonnano et al. (2020), Miller et al. (2020). Could vary 0.24-1.5 h-1, depending on particle size range
A18: Additional control measures | B18: 0 | C18: h-1 | G18: E.g. UV disinfection, personal HEPA air cleaner, etc.
A19: Total first order loss rate | B19: =sum(B15:B18) -> 3.62 | C19: h-1
A21: Fraction of population infected | B21: 0.003 | G21: See readme sheet
A22: Number of passengers infected | B22: =B21*B10 -> 0.12 | C22: people
A24: ABSOLUTE RESULTS: probability of infection, taking into account the prevalence of the disease in the population
A26: Quanta emission rate | B26: 10 | C26: q h-1 | G26: Estimated from Miller (2020) and Buonnano et al. (2020a, 2020b). See Readme sheet
A27: Mask efficiency for emission | B27: 0.5 | G27: See readme sheet
A28: Net emission rate | B28: =B26*(1-B27) -> 5 | C28: q h-1
A30: Avg Quanta Conc. (1 infected) | B30: =B28/B$19/E$8*(1-(1/B$19/E$13)*(1-exp(-B$19*E$13))) -> 0.01322013984 | C30: q m-3 | G30: Equation (4) in Miller et al. (2020)
A31: Avg Quanta Conc. (w/ prob of inf.) | B31: =B30*B22 -> 0.001586416781
A33: Mask efficiency for intake | B33: 0.3 | G33: See readme sheet
A34: Quanta inhaled per person | B34: =B31*B$11*E$13*(1-B33) -> 0.0006662950481 | C34: quanta
A35: Probability of infection (1 person) | B35: =1-exp(-B34) -> 0.0006660731229 | G35: Equation (1) in Miller et al. (2020)
A36: Number of COVID cases arising | B36: =B$10*B35 -> 0.02664292491

Sheet Demonst_Old
A2: Estimation of COVID-19 aerosol transmission outdoors during daytime, demonstration (5 people / m2)
A4: Input Parameters
B5: Value | E5: Value in other units | G5: Source
A6: Surface area | B6: =30*60 -> 1800 | C6: sq ft | D6: = | E6: =B6*0.305^2 -> 167.445 | F6: m2 | G6: Just assuming a value, similar to choir outbreak case
A7: Height | B7: 15 | C7: ft | D7: = | E7: =B7*0.305 -> 4.575 | F7: m | G7: Assuming that air within this height can get mixed to respiratory height
A8: Volume | E8: =E6*E7 -> 766.060875 | F8: m3
A10: Prob. of demonstrator infected | B10: 0.003 | G10: See readme sheet
A12: Number of infected people | B12: =B13*B10 -> 2.511675 | C12: person | G12: Just assuming a value, similar to choir outbreak case
A13: Susceptible people | B13: =E6*5 -> 837.225 | C13: people | G13: Assume 5 people per m2, per http://www.gkstill.com/Support/crowd-density/CrowdDensity-1.html
A14: Breathing rate (index case) | B14: 0.8 | C14: m3 / h | G14: Estimated from Miller et al. (2020), for someone occasionally talking
A15: Breathing rate (susceptible) | B15: 0.8 | C15: m3 / h | G15: Estimated from Miller et al. (2020), for someone occasionally talking
A17: Duration of event | B17: 150 | C17: min | E17: 2.5 | F17: h | G17: Typical value for a demonstration. Also similar to choir outbreak case
A19: Wind speed | B19: 5 | C19: km/ h | E19: =B19*1000/3600 -> 1.388888889 | F19: m/s | G19: 1/2 of low end of average daytime US wind speed per https://sciencing.com/average-daily-wind-speed-24011.html
A21: Ventilation w/ outside air | B21: =E19/ sqrt(E6) *3600 -> 386.3971482 | C21: h-1 | G21: Same as "air changes per hour", calculated approximately from the wind speed
A22: Decay rate of the virus | B22: 9.3 | C22: h-1 | G22: Estimated (UV index 5, default T & RH) from https://www.dhs.gov/science-and-technology/sars-airborne-calculator
A23: Deposition to surfaces | B23: 0.3 | C23: h-1 | G23: Buonnano et al. (2020), Miller et al. (2020). Could vary 0.24-1.5 h-1, depending on particle size range
A24: Additional control measures | B24: 0 | C24: h-1 | G24: E.g. UV disinfection, personal HEPA air cleaner, etc.
A25: Total first order loss rate | B25: =sum(B21:B24) -> 395.9971482 | C25: h-1
A27: ABSOLUTE RESULTS: probability of infection, taking into account the prevalence of the disease in the population
A29: Quanta emission rate (infected) | B29: 100 | C29: q h-1 | G29: People talking loudly, see readme sheet
A30: Mass efficiency for emission | B30: 0.4 | G30: Assume 80% mask wearing
A31: Net emission rate | B31: =B29*(1-B30)*B12 -> 150.7005 | C31: q h-1 | G31: Includes the number of infected people above
A33: Avg Quanta Concentration | B33: =B$31/B$25/E$8*(1-(1/B$25/E$17)*(1-exp(-B$25*E$17))) -> 0.00049627277 | C33: q m-3 | G33: Equation (4) in Miller et al. (2020)
A35: Quanta inhaled per person | B35: =B33*B$15*E$17 -> 0.00099254554 | C35: quanta
A36: Probability of infection (1 person) | B36: =1-exp(-B35) -> 0.0009920531296 | G36: Equation (1) in Miller et al. (2020)
A37: Number of COVID cases arising | B37: =B$13*B36 -> 0.8305716815

Sheet Rally_Old
A2: Estimation of COVID-19 aerosol transmission in a political rally
A4: Input Parameters
B5: Value | E5: Value in other units | G5: Source
A6: Surface area | B6: =435*337 -> 146595 | C6: sq ft | D6: = | E6: =B6*0.305^2 -> 13636.99988 | F6: m2 | G6: https://en.wikipedia.org/wiki/BOK_Center and estimated from Google maps
A7: Height | B7: 120 | C7: ft | D7: = | E7: =B7*0.305 -> 36.6 | F7: m | G7: https://en.wikipedia.org/wiki/BOK_Center
A8: Volume | E8: =E7*E6 -> 499114.1954 | F8: m3
A10: Attendees | B10: 19199 | C10: people | G10: https://en.wikipedia.org/wiki/BOK_Center
A11: Breathing rate | B11: 0.9 | C11: m3/h | G11: Estimated from Miller et al. (2020), for someone talking, shouting, cheering part of the time
A13: Duration of Event | B13: 120 | C13: min | E13: =B13/60 -> 2 | F13: h | G13: Typical value, includings some waiting time before event, and time to enter and exit
A15: Area of player field | B15: =230*85 -> 19550 | C15: sq ft | D15: = | E15: =B15*0.305^2 -> 1818.63875 | F15: m2 | G15: https://en.wikipedia.org/wiki/Ice_hockey_rink#Dimensions with buffer at the back
A16: Rest of building area | B16: =B6-B15 -> 127045 | D16: = | E16: 11818.36113 | F16: m2
A18: Ventilation for player field | B18: =10*50+0.9*E15 -> 2136.774875 | C18: L/s | E18: =B18*3600/1000 -> 7692.38955 | F18: m3 h-1 | G18: 10 L/s/person + 0.9 L/s/m2, per ASHRAE 62.1-2013
A19: Ventilation for rest of building | B19: =B10*3.8+0.9*E16 -> 83592.72501 | C19: L/s | E19: 300933.81 | F19: m3 h-1 | G19: 3.8 L/s/person + 0.3 L/s/m2, per ASHRAE 62.1-2013
A22: Ventilation w/ outside air | B22: =(E18+E19)/E8 -> 0.6183478699 | C22: h-1 | E22: =B22*E8*1000/3600/(B10+#REF!) -> #REF! | F22: L/s/per | G22: First value is the same as "air changes per hour". Second is used in most guidelines now
A23: Decay rate of the virus | B23: 0.32 | C23: h-1 | G23: Average of literature values (0 and 0.62), Miller et al. (2020)
A24: Deposition to surfaces | B24: 0.3 | C24: h-1 | G24: Buonnano et al. (2020), Miller et al. (2020). Could vary 0.24-1.5 h-1, depending on particle size range
A25: Additional control measures | B25: 0 | C25: h-1 | G25: E.g. UV disinfection, personal HEPA air cleaner, etc.
A26: Total first order loss rate | B26: =sum(B22:B25) -> 1.23834787 | C26: h-1
A28: Case in which instructor is infected, students are susceptible
A30: Quanta emission rate per person | B30: 50 | C30: q h-1 | G30: Estimated from Miller (2020) and Buonnano et al. (2020a, 2020b). See Readme sheet, shouting, cheering, talking
A31: Mask efficiency for emission | B31: 0.15 | G31: See readme sheet; Assuming 1/3 of people wearing masks
A32: Net emission rate per person | B32: =B30*(1-B31) -> 42.5 | C32: q h-1
A33: Fraction of infected people in OK | B33: 0.001
A34: Total emission rate | B34: =B33*B10*B32 -> 815.9575
A36: Avg Quanta Concentration | B36: =B34/B$26/E$8*(1-(1/B$26/E$13)*(1-exp(-B$26*E$13))) -> 0.0008319097566 | C36: q m-3 | G36: Equation (4) in Miller et al. (2020)
A38: Mask efficiency for intake | B38: =B31 -> 0.15 | G38: See readme sheet
A39: Quanta inhaled per person | B39: =B36*B11*E$13*(1-B38) -> 0.001272821928 | C39: quanta
A40: Probability of infection (1 student) | B40: =1-exp(-B39) -> 0.001272012233 | G40: Equation (1) in Miller et al. (2020)
A41: Number of COVID cases arising | B41: =B$10*B40 -> 24.42136287
